{"text_format":"1","workbook":"xlsx","n_sheets":23,"sheets":["Cover Page","Facility Info","Operational Data","Operational Summary","Perf. Form 1","Energy Form 1","Permit Compliance","Improvements","Public Liasion","CO2 N20","Residues","Water","Air (periodic)","Air (CEMS)","HCl","SO2","NOx","TOC","Particulates","CO 0.5 hourly","CO 95% 10 min","NH3","Template changes log"],"not_rendered":{"charts":8,"images":3,"macros":1,"external_links":0,"defined_names":18,"comments":0,"pivot_tables":0},"unopened":[],"bounds":{"document_bytes":16777216,"sheet_cells":100000,"rows_first":2000,"rows_last":500,"rows_between":2000,"halvings":0,"cell_chars":16384,"cell_head_chars":4096},"cells_cut":0,"cells_raw":0,"read":"whole","date_system":"1900"}

{"sheet":"Cover Page","index":0,"n_rows":53,"n_cols":11,"rows_kept":53,"cut":false,"hidden":false,"merged":[[48,2,48,3],[48,6,48,8],[52,2,52,3],[36,1,36,8],[40,2,40,8],[42,2,42,4],[44,2,44,4],[46,2,46,3],[46,6,46,8],[13,10,18,12],[34,1,34,8],[0,3,5,6],[7,1,23,8],[28,1,28,8],[30,1,30,8],[32,1,32,8]]}
[]
[null,null,null,null,null,null,null,null,null,null,"Template version 25.1a (for incinerators) - 27/11/25"]
[]
[null,null,null,null,null,null,null,null,null,null,"Note that there is another version of this template available for co-incinerators"]
[]
[]
[]
[]
[]
[]
[]
[]
[null,null,null,null,null,null,null,null,null,null,"Notes:"]
[null,null,null,null,null,null,null,null,null,null,"This template may require adjustments by individual operators to meet specific reporting requirements as defined in the site Permit(s)"]
[]
[]
[]
[]
[]
[]
[]
[]
[]
[]
[]
[]
[]
[]
[null,"Annual Performance Report 2025"]
[]
[null,"Permit EPR/GP3031JB"]
[]
[null,"Issue Date:"]
[]
[]
[]
[null,"Vital Energi (Drakelow) LTD"]
[]
[null,"Year:",2025]
[]
[null,"Address:","Walton Road, Burton upon Trent, Staffordshire, DE15 9NG"]
[]
[null,"Tel: ","01254 942191"]
[]
[null,"Email: ","nick.dale@vitalenergi.co.uk"]
[]
[null,"Prepared by:","N Dale",null,null,"Position:","Operations Manager"]
[]
[null,"Approved by:","N Dale",null,null,"Position:","Operations Manager"]
[]
[null,"Version:",2]
[]
[null,"Issue Date:","2026-12-03"]

{"sheet":"Facility Info","index":1,"n_rows":22,"n_cols":11,"rows_kept":22,"cut":false,"hidden":false,"merged":[[4,0,17,8],[21,0,53,8],[4,10,13,13],[21,10,30,13]]}
[{"$f":"+'Cover Page'!$B$29","v":"Annual Performance Report 2025"},null,null,null,{"$f":"+'Cover Page'!$B$33","v":"Issue Date:"}]
[]
["Plant Description and Design",null,null,null,null,null,null,null,null,null,"Notes:"]
[]
["\"The installation will utilise advanced thermal treatment technology, namely gasification, as a means of processing refuse derived fuel (RDF) waste to produce a combustible syngas which will be used to raise steam and generate energy. The energy will be recovered from the installation in the form of electricity for export to the national grid. In addition the facility will be ‘CHP ready’ so that when a district heating market becomes available, the provision of heat to supply a local network will be achievable without any significant modifications to the installed system. The facility has a total capacity of approximately 77MW (thermal input) and is capable of generating up to 18 MWe (gross) of electricity with the capacity to export 15MWe to the national grid. \nThe installation is capable of processing up to 169,000 tons of RDF per annum via 3 gasification lines. . All incoming RDF will be processed and then stored indoors, within a dedicated fuel bunker, prior to being loaded to the gasification plant. There is no external storage of RDF. The gasification process takes place in two zones within the gasifiers, i.e. in the gasification zone, where the RDF will be heated, and in the oxidation zone, where the resultant syngas is combusted.  Combustion gases are passed to boilers to raise superheated steam, which is then used in a steam turbine to generate electricity. \nThe plant is operated by a dedicated shift team who are based in the facilities Control Room. The shift staff work on a rolling Rota and the plant is operated via a DCS. The operations team are supplemented by a 'day' Maintenance team who provide both reactive and proactive maintenance to the plant. \nThe installation is located at National Grid Reference SK 23250 19810, approximately 3km south of the center of Burton-upon-Trent in Staffordshire, on the site of the former Drakelow C Power Station\"\t\t\t\t\t\t\t\t\n\t\t\t\t\t\t\t\t\n\t\t\t\t\t\t\t\t\n\t\t\t\t\t\t\t\t\n\t\t\t\t\t\t\t\t\n\t\t\t\t\t\t\t\t\n\t\t\t\t\t\t\t\t\n\t\t\t\t\t\t\t\t\n\t\t\t\t\t\t\t\t\n\t\t\t\t\t\t\t\t\n\t\t\t\t\t\t\t\t\n\t\t\t\t\t\t\t\t\n\t\t\t\t\t\t\t\t\n\t\t\t\t\t\t\t\t",null,null,null,null,null,null,null,null,null,"Include summary of plant design, design capacity, no. of combustion lines, electrical and heat capacity and any other general information that describes the facility, its location and purpose "]
[]
[]
[]
[]
[]
[]
[]
[]
[]
[]
[]
[]
[]
[]
["Summary of Operational Processes and Procedures"]
[]
["\"Cleaning of flue gases and pollution control consists of several steps: firstly Selective Non-Catalytic Reduction (SNCR) is used to reduce oxides of nitrogen through the injection of a urea solution into the combustion chambers. Then once the flue gas has passed through the boilers it receives further clean-up. The neutralisation of acid gases is achieved through the injection of hydrated lime, while the removal of heavy metals and dioxins is achieved through the injection of powdered activated carbon into the gas stream. Particulate matter is removed in bag filters. \nCleaned flue gases arising from each gasification line are discharged to atmosphere through a single, 55 meter tall stack, and will be monitored continuously as required by the permit and in accordance with MCERTS. \nUncontaminated surface water run-off from roofs and clean yard areas will be discharged to the surface water drainage system via an oil separator. Process wastewater consisting of boiler blowdown (principally demineralised water with elevated pH) and effluent from the sewage treatment plant will be discharged to surface water following monitoring and correction for pH and temperature. Any other wastewater arising from process plant will be collected in the effluent tank and taken off-site for disposal. There are no discharges to public foul sewer from the installation.  \nThe gasification process results in several waste streams, including bottom ash, fly ash, air pollution control (APC) residues from the flue gas treatment process; and ferrous and non-ferrous metals from the on-site pre-screening process. These materials will be temporarily stored on site prior to recovery or disposal in a suitably licensed off-site facility. \nRDF (Refuse Derived Fuel), which will be delivered to site by road, will arrive pre-treated to a required specification but will receive further pre-screening on-site in the Mechanical Polishing Plant (MPP) to remove any residual ferrous and non-ferrous metals for off-site recycling\"\t\t\t\t\t\t\t\t\n\t\t\t\t\t\t\t\t\n\t\t\t\t\t\t\t\t\n\t\t\t\t\t\t\t\t\n\t\t\t\t\t\t\t\t\n\t\t\t\t\t\t\t\t\n\t\t\t\t\t\t\t\t\n\t\t\t\t\t\t\t\t\n\t\t\t\t\t\t\t\t\n\t\t\t\t\t\t\t\t\n\t\t\t\t\t\t\t\t\n\t\t\t\t\t\t\t\t\n\t\t\t\t\t\t\t\t\n\t\t\t\t\t\t\t\t\n\t\t\t\t\t\t\t\t\n\t\t\t\t\t\t\t\t\n\t\t\t\t\t\t\t\t\n\t\t\t\t\t\t\t\t\n\t\t\t\t\t\t\t\t\n\t\t\t\t\t\t\t\t\n\t\t\t\t\t\t\t\t\n\t\t\t\t\t\t\t\t\n\t\t\t\t\t\t\t\t\n\t\t\t\t\t\t\t\t\n\t\t\t\t\t\t\t\t\n\t\t\t\t\t\t\t\t\n\t\t\t\t\t\t\t\t\n\t\t\t\t\t\t\t\t\n\t\t\t\t\t\t\t\t\n\t\t\t\t\t\t\t\t\n\t\t\t\t\t\t\t\t\n\t\t\t\t\t\t\t\t\n\t\t\t\t\t\t\t\t",null,null,null,null,null,null,null,null,null,"Include summary of key processes and procedures such as (but not limited to); waste reception, control rooms, grate, bed and boiler, energy & heat  generation, cooling systems, residue management, emission controls, health and safety systems, maintenance"]

{"sheet":"Operational Data","index":2,"n_rows":65,"n_cols":10,"rows_kept":65,"cut":false,"hidden":false,"merged":[[4,9,23,9],[25,9,29,9],[53,0,57,0],[34,1,39,1],[3,1,3,2],[10,1,22,1],[26,1,28,1],[7,2,7,3]]}
[{"$f":"+'Cover Page'!$B$29","v":"Annual Performance Report 2025"},null,null,null,{"$f":"+'Cover Page'!$B$33","v":"Issue Date:"}]
[]
["Operational Data"]
["Plant Size:",169,null,"tonnes pa",null,null,null,null,null,"Notes:"]
["Nominal net thermal input:",null,"MWth",null,null,null,null,null,null,"* Export capacity = nominal generation capacity at the generator terminals minus nominal parasitic load.\n\n** CHP and district heating plants only - put N/A if no heat export.\n\n***  Combusted tonnage = tonnes delivered in period + (tonnes in bunker at start of period – tonnes in bunker at end of period), or equivalent calculation depending on plant type\n\n**** Availability Definition: The availability of a line is to be calculated by the number of hours the line reported Continuously Monitored emission levels to the Regulator through the calendar year divided by the total number of hours in that year. \n\nThe overall plant availability is calculated as the mean of all lines in the plant. For clarity this includes periods of abnormal operation.  \n\nRationale: The primary function of an Energy from Waste facility is the disposal of waste. It follows therefore that the availability of a plant is determined by the period of time a facility spends undertaking this activity.\n\n*****NCV of waste: This should be completed for all plants which have a boiler. Calculate using total thermal power produced by boiler/boiler efficiency, or other suitable calculation. \n"]
["Nominal electrical export capacity*:",15,"MWe"]
["Nominal heat export capacity**:",null,"MWth"]
["No. of combustion lines:",3,"No. of steam turbines:",null,1]
[]
["Waste types received","Unit","Q1","Q2","Q3","Q4","Year Total","%"]
["Household / Local Authority","tonnes",0,0,0,0,{"$f":"SUM(C11:F11)","v":0},{"$f":"IF(G11>0,G11/$G$21,\"-\")","v":"-"}]
["Commercial & Industrial ",null,0,0,0,0,{"$f":"SUM(C12:F12)","v":0},"-"]
["Hazardous ",null,0,0,0,0,0,"-"]
["Clinical",null,0,0,0,0,0,"-"]
["Waste wood (biomass) ",null,0,0,0,0,0,"-"]
["Refuse Derived Fuel (incl. SRF) - H'hold/LA",null,0,0,0,0,{"$f":"SUM(C16:F16)","v":0},"-"]
["Refuse Derived Fuel (incl. SRF) - C&I",null,30102,37352,25410,37964,130828,1]
["Other [Please specify]",null,0,0,0,0,0,"-"]
["Other [Please specify]",null,0,0,0,0,0,"-"]
["Other [Please specify]",null,0,0,0,0,0,"-"]
["Total waste received",null,{"$f":"SUM(C11:C20)","v":30102},{"$f":"SUM(D11:D20)","v":37352},{"$f":"SUM(E11:E20)","v":25410},{"$f":"SUM(F11:F20)","v":37964},130828]
["Rejected Waste ",null,0,22,0,0,{"$f":"SUM(C22:F22)","v":22},{"$f":"IF(G22>0,G22/$G$21,\"-\")","v":1.6815972116060782E-4}]
["Unprocessed waste transferred out",null,0,0,0,0,{"$f":"SUM(C23:F23)","v":0},{"$f":"IF(G23>0,G23/$G$21,\"-\")","v":"-"}]
["Total waste combusted ***",null,30102,37352,25410,37964,{"$f":"SUM(C24:F24)","v":130828}]
[]
["Energy Usage / Export","Unit","Q1","Q2","Q3","Q4","Year Total","KWh/te",null,"Password for protected cells\nA password has been set to prevent accidental  editing of cells with formulae. \nIf you still need to make an edit for some reason then the password = 1234"]
["Power generated at generator terminals","MWh",22329,26855,19173,30754,{"$f":"SUM(C27:F27)","v":99111},{"$f":"IF(G27>0,G27*1000/$G$24,\"-\")","v":757.56718745222736}]
["Power exported to grid and other external user(s)",null,19302,23238,16266,26525,{"$f":"SUM(C28:F28)","v":85331},{"$f":"IF(G28>0,G28*1000/$G$24,\"-\")","v":652.23805301617392}]
["Power imported",null,240,266,603,75,1184,{"$f":"IF(G29>0,G29*1000/$G$24,\"-\")","v":9.0500504479163482}]
["Indicative parasitic load","%",{"$f":"IF(C27>0,(C27-C28)/C27,\"-\")","v":0.13556361682117427},{"$f":"IF(D27>0,(D27-D28)/D27,\"-\")","v":0.13468627816049153},0.15161946487247693,0.13751056773102685,{"$f":"IF(G27>0,1-G28/(G27+G29),\"-\")","v":0.14919986041178523}]
["Thermal Energy Exported **",null,0,0,0,0,{"$f":"SUM(C31:F31)","v":0},{"$f":"IF(G31>0,G31*1000/$G$24,\"-\")","v":"-"}]
["R1 value (if applicable)","R1","-","-","-","-"]
[]
["Waste Disposal & Recovery","Unit","Q1","Q2","Q3","Q4","Year Total","% inputs"]
["APC Residues - produced","tonnes",1657,2162,1425,2262,{"$f":"SUM(C35:F35)","v":7506},{"$f":"IF(G35>0,G35/$G$24,\"-\")","v":5.7373039410523741E-2}]
["IBA - produced",null,5707,7083,4263,5829,22882,{"$f":"IF(G36>0,G36/$G$24,\"-\")","v":0.17490139725441037}]
["Metals recycling",null,589,673,451,735,{"$f":"SUM(C37:F37)","v":2448},1.8711590790962178E-2]
["Under Grate Riddlings (Haz. IBA)",null,330,711,541,509,{"$f":"SUM(C38:F38)","v":2091},1.598281713394686E-2]
["Boiler Fly Ash",null,312,243,318,292,1165,8.9048215978230951E-3]
["Other",null,0,0,0,0,0,"-"]
[]
["Raw Material Usage","Unit","Q1","Q2","Q3","Q4","Year Total","Qty./te"]
["Mains Water","ltrs",null,null,null,19237000,{"$f":"SUM(C43:F43)","v":19237000},{"$f":"IF(G43>0,G43/$G$24,\"-\")","v":147.04038890757332},null,"Data taken November 24 - November 25"]
["Other Water","ltrs",0,0,0,0,0,{"$f":"IF(G44>0,G44/$G$24,\"-\")","v":"-"}]
["Ammonia","kgs",0,0,0,0,0,"-"]
["Urea","kgs",200761,182039,94452,150722,{"$f":"SUM(C46:F46)","v":627974},4.799996942550524]
["Activated Carbon","kgs",20000,20000,10100,30340,80440,0.61485308955269513]
["Lime / hydrated lime","kgs",943000,1131000,725000,1113000,3912000,29.901855871831717]
["Fuel oil","ltrs",0,0,0,0,0,"-"]
["Gas","m3",5803,2115,3255,2742,13915,0.10636102363408445]
["Other",null,null,null,null,null,0,"-"]
[]
["Summary ","Line/Unit","Q1","Q2","Q3","Q4","Year Total",null,"Hrs in year "]
["Availability of waste combustion by line, hrs ****",1,1826,1888,1432,2082,{"$f":"SUM(C54:F54)","v":7228},{"$f":"+G54/$I$54","v":0.82511415525114151},8760,"Change this figure to 8784 in a leap year"]
[null,2,1683,1910,1628,1889,7110,{"$f":"+G55/$I$54","v":0.81164383561643838}]
[null,3,1556,1984,1364,1902,6806,0.77694063926940637]
[null,4,"N/A","N/A","N/A","N/A",0,0]
[null,5,"N/A","N/A","N/A","N/A",{"$f":"SUM(C58:F58)","v":0},0]
["Hours of turbine operations, hrs",1,1977,2008,1691,2183,7859,0.89714611872146122]
["Hours of turbine operations, hrs",2,"N/A","N/A","N/A","N/A",0,0]
["Hours of heat / steam export**","hours","N/A","N/A","N/A","N/A",0,{"$f":"IF(B61>0,G60/I54,\"n/a\")","v":0}]
["Net calorific value of waste*****","MJ/kg",11,11,12,12,12]
["Abnormal operation events","qty.",0,0,0,0,0,{"$f":"IF(G63>0,\"yes\",\"no\")","v":"no"}]
["Abnormal operation duration","hours",4,1,3,1,9,{"$f":"+(G64)/I54","v":1.0273972602739725E-3},null,"To confirm as per CAR ********"]
["Permit Breaches","qty.",1,2,1,1,5,{"$f":"IF(G65>0,\"yes\",\"no\")","v":"yes"},null,"To confirm as per CAR ********"]

{"sheet":"Operational Summary","index":3,"n_rows":30,"n_cols":11,"rows_kept":30,"cut":false,"hidden":false,"merged":[[4,0,44,8],[29,10,42,13],[4,10,13,13]]}
[{"$f":"+'Cover Page'!$B$29","v":"Annual Performance Report 2025"},null,null,null,{"$f":"+'Cover Page'!$B$33","v":"Issue Date:"}]
[]
["Summary of Plant Operations and Maintenance during the reporting year",null,null,null,null,null,null,null,null,null,"Notes:"]
[]
["The facility annual maintenance outage was completed in stages between the 11th July and 31st August 2025.  The purpose of the annual shutdown was to service and maintain all items of equipment that cannot be serviced or maintained while the plant is operating throughout the year.  The shutdown included cleaning and inspection works to the Boiler and Flue Gas Treatment Plant, statutory inspections, balance of plant maintenance, defect rectification works, and any outstanding annual preventative maintenance routines, some of which are listed below:\n\nRope Access Cleaning\nBoiler Cleaning and Inspection\nSuperheater Cleaning and Inspection\nBoiler Internal Shot blasting\nBoiler Non-Destructive Examination\nPSSR valve and pressure vessel inspections\nRefractory Repairs\nEconomiser Cleaning and Inspection\nInternal Boiler Pressure Parts Inspection\nRotating Fan Maintenance\nBag House Damper Cleaning\nBag House Filter Inspections\nBoiler Conveyor Maintenance inc motor/gearbox overhauls\nCombustion Grate Maintenance\nInstrumentation Calibration\nEmissions Monitoring Equipment Maintenance\nUPS Maintenance inc battery drop test\nLV Switchboard Maintenance\nLV breaker maintenance\nDCS Maintenance\nTurbine Generator Maintenance\nVariable Speed Drive Maintenance\nFGT bag filter inspection / maintenance\nSaxlund Walking Floor inspections\nFuel Feed Conveyor inspections\nAPCR screw replacements\nFuel Processing (Shredder) maintenance\nUnder Grate ladder section strengthening improvements\nModification to metering bin screws\nAsh conveyor replacements\nAdditional ‘under boiler’ hopper added to all three streams\n\n\n\n\nDrakelow’s first year of Plant Operations inevitably threw up some issues.\nIn addition to the planned annual maintenance outages in July and August, there were one-week stops in January and February for initial post commissioning inspections and further internal inspections carried out in April / May.\nIn total there were 150 stops across all three streams ranging from 30 minutes in duration for a blocked feed conveyor, to 120 hours for a combustion grate bar failure.\nDowntime analysis will provide guidance for the 2026 annual shutdown work package with additional planned improvements likely to considerably increase reliability.\n",null,null,null,null,null,null,null,null,null,"Include summary of key operational and/or maintenance activity undertaken in the year, such as any major component upgrades and/or replacements "]
[]
[]
[]
[]
[]
[]
[]
[]
[]
[]
[]
[]
[]
[]
[]
[]
[]
[]
[]
[]
[]
[]
[]
[]
[null,null,null,null,null,null,null,null,null,null,"Provide a very brief reason for plant shut-down e.g. \"Shut-down prior to major outage\"; \"Emergency shut-down due to boiler tube leak\". All emergency shut-downs must be listed (irrespective of whether or not they were required to be reported to the EA). \n\nThere is no need to include periods of hot-standby here (e.g. to clear feed chute hopper blockages).\n\nFor clinical waste incinerators which require regular shut-downs for boiler cleaning, there is no need to record these here (only those prior to major outages, and emergency shut-downs). "]

{"sheet":"Perf. Form 1","index":4,"n_rows":54,"n_cols":10,"rows_kept":54,"cut":false,"hidden":false,"merged":[[47,0,47,1],[49,0,49,9],[50,0,51,9],[38,0,38,9],[39,0,40,9],[43,0,43,1],[43,2,43,9],[45,0,45,1],[46,0,46,1],[36,0,36,3],[36,4,36,5],[36,7,36,8],[37,0,37,3],[37,4,37,5],[37,7,37,8],[34,0,34,3],[34,4,34,5],[34,7,34,8],[35,0,35,3],[35,4,35,5],[35,7,35,8],[31,0,31,3],[31,7,31,8],[32,0,32,3],[32,4,32,5],[32,7,32,8],[33,0,33,3],[33,4,33,5],[33,7,33,8],[23,0,23,3],[23,4,23,5],[23,6,23,7],[23,8,23,9],[25,0,25,9],[26,0,28,9],[21,0,21,1],[21,2,21,3],[21,4,21,5],[21,6,21,7],[21,8,21,9],[22,0,22,3],[22,4,22,5],[22,6,22,7],[22,8,22,9],[20,0,20,1],[19,2,19,3],[19,4,19,5],[19,6,19,7],[19,8,19,9],[20,2,20,3],[20,4,20,5],[20,6,20,7],[20,8,20,9],[17,0,17,1],[17,2,17,3],[17,4,17,5],[17,6,17,7],[17,8,17,9],[18,0,18,1],[18,2,18,3],[18,4,18,5],[18,6,18,7],[18,8,18,9],[15,0,15,1],[15,2,15,3],[15,4,15,5],[15,6,15,7],[15,8,15,9],[16,0,16,9],[13,0,13,1],[13,2,13,3],[13,4,13,5],[13,6,13,7],[13,8,13,9],[14,0,14,3],[14,4,14,5],[14,6,14,7],[14,8,14,9],[11,0,11,1],[11,2,11,3],[11,4,11,5],[11,6,11,7],[11,8,11,9],[12,0,12,1],[12,2,12,3],[12,4,12,5],[12,6,12,7],[12,8,12,9],[9,0,9,9],[10,0,10,1],[10,2,10,3],[10,4,10,5],[10,6,10,7],[10,8,10,9],[2,0,2,4],[2,6,2,8],[3,1,3,4],[5,3,5,4],[5,6,5,7],[8,0,8,1],[8,2,8,3],[8,4,8,5],[8,6,8,7],[8,8,8,9]]}
[{"$f":"+'Cover Page'!C39","v":2025}," Annual Reporting Performance Form 1"]
[]
[{"$f":"+'Cover Page'!B31","v":"Permit EPR/GP3031JB"},null,null,null,null,"Operator: ",{"$f":"+'Cover Page'!B37","v":"Vital Energi (Drakelow) LTD"}]
["Facility:",{"$f":"+'Cover Page'!B33:I33","v":"Issue Date:"},null,null,null,"Form:","Performance 1"]
[]
["Reporting  Period from: ",null,null,"Wednesday January 1, 2025",null,"to:","Wednesday, December 31, 2025"]
[]
[{"$f":"+A1","v":2025},"Annual Reporting of Waste Disposal and Recovery"]
["Waste Description",null,"Disposal Route(s)",null,"Disposal Tonnes",null,"Recovery Tonnes",null,"% / tonne of waste incinerated"]
["1) Hazardous Wastes"]
["APC Residues",null,"Castle Env. Derbyshire. (D09)\nAugean ENRMF, Northamptonshire. (D09)",null,7506.3,null,0,null,{"$f":"IF((E11+G11)>0,(E11+G11)/'Operational Data'!$G$24, \"-\")","v":5.737533249763048E-2}]
["UGA",null,"Augean ENRMF, Northamptonshire. (D15)\nAugean Thornhaugh, Peterborough (D15)",null,2091.3000000000002,null,0,null,{"$f":"IF((E12+G12)>0,(E12+G12)/'Operational Data'!$G$24, \"-\")","v":1.5985110221053599E-2}]
["BFA",null,"Augean ENRMF, Northamptonshire. (D09)",null,1166.2,null,0,null,{"$f":"IF((E13+G13)>0,(E13+G13)/'Operational Data'!$G$24, \"-\")","v":8.9139939462500387E-3}]
[null,null,null,null,null,null,null,null,{"$f":"IF((E14+G14)>0,(E14+G14)/'Operational Data'!$G$24, \"-\")","v":"-"}]
["Total Hazardous Waste",null,null,null,{"$f":"SUM(E11:F14)","v":10763.800000000001},null,{"$f":"SUM(G11:H14)","v":0},null,{"$f":"IF((E15+G15)>0,(E15+G15)/'Operational Data'!$G$24, \"-\")","v":8.2274436664934114E-2}]
[]
["2) Non-Hazardous Wastes"]
["IBA",null,"Land Recovery Ltd, Staffordshire. (D02)\nJohnsons Aggregates, Derbyshire. (R13)\nFortis A303 Andover, Hampshire (R13)",null,22881,null,22881,null,{"$f":"IF((E18+G18)>0,(E18+G18)/'Operational Data'!$G$24, \"-\")","v":0.34978750726144253}]
["Ferrous Metal",null,"Morris & Co, South Yorkshire. (R04)",null,1592.3,null,1178.3,null,{"$f":"IF((E19+G19)>0,(E19+G19)/'Operational Data'!$G$24, \"-\")","v":2.1177423793071817E-2}]
["None-Ferrous Metal",null,"Morris & Co, South Yorkshire. (R04)",null,855,null,555.79999999999995,null,{"$f":"IF((E20+G20)>0,(E20+G20)/'Operational Data'!$G$24, \"-\")","v":1.0783624300608433E-2}]
["Process Water (Marsh Tank)",null,"(Filtercake) Veolia ES (UK) LTD non hazardous landfill.\n\n(Final Effluent) Discharge under consent to Severn Trent.\n",null,89.5,null,0,null,{"$f":"IF((E21+G21)>0,(E21+G21)/'Operational Data'!$G$24, \"-\")","v":6.8410432017610909E-4}]
[null,null,null,null,null,null,null,null,{"$f":"IF((E22+G22)>0,(E22+G22)/'Operational Data'!$G$24, \"-\")","v":"-"}]
["Total Non-Hazardous Waste",null,null,null,{"$f":"SUM(E18:F22)","v":25417.8},null,{"$f":"SUM(G18:H22)","v":24615.1},null,{"$f":"IF((E23+G23)>0,(E23+G23)/'Operational Data'!$G$24, \"-\")","v":0.38243265967529882}]
["TOTAL WASTE",null,null,null,{"$f":"+E23+E15","v":36181.599999999999},null,{"$f":"+G23+G15","v":24615.1},null,{"$f":"IF((E24+G24)>0,(E24+G24)/'Operational Data'!$G$24, \"-\")","v":0.46470709634023294}]
[]
["Operator’s comments :"]
[]
[]
[]
[]
[{"$f":"+A1","v":2025},"Annual Reporting of Water and Other Raw Material Usage"]
["Raw Material",null,null,null,"Usage",null,"Unit","Specific Usage",null,"Unit"]
["Mains Water",null,null,null,19237,null,"m3",{"$f":"IF(E33>0,E33/'Operational Data'!$G$24,\"-\")","v":0.14704038890757332},null,"m3/te"]
["Total Water",null,null,null,19237,null,"m3",{"$f":"IF(E34>0,E34/'Operational Data'!$G$24,\"-\")","v":0.14704038890757332},null,"m3/te"]
["Urea / Ammonia",null,null,null,627972.65,null,"kg",{"$f":"IF(E35>0,E35/'Operational Data'!$G$24,\"-\")","v":4.799986623658544},null,"kg/te"]
["Activated Carbon",null,null,null,{"$f":"+'Operational Data'!G47","v":80440},null,"kg",{"$f":"IF(E36>0,E36/'Operational Data'!$G$24,\"-\")","v":0.61485308955269513},null,"kg/te"]
["Lime / hydrated lime / Sodium Bicarb.",null,null,null,{"$f":"+'Operational Data'!G48","v":3912000},null,"kg",{"$f":"IF(E37>0,E37/'Operational Data'!$G$24,\"-\")","v":29.901855871831717},null,"kg/te"]
[]
["Operator’s comments :"]
["Incomplete data for the site main water usage as the meter was damaged in Q4. Data is November 24 - November 25"]
[]
[]
[{"$f":"+A31","v":2025},"Annual Reporting of other performance indicators "]
["Parameter",null,"Results by Line"]
[null,null,"A1","A2","A3","A4","A5",null,"Turbine 1","Turbine 2"]
["Operating hours for the year, hours",null,7228,7111,6807,"N/A","N/A",null,6858,"N/A"]
["Number of periods of abnormal operation, qty.",null,4,1,3,"N/A","N/A",null,"N/A","N/A"]
["Cumulative hours of abnormal operation for this year, hours",null,2.5,0.5,2,"N/A","N/A",null,"N/A","N/A"]
[]
["Operator’s comments :"]
["AO to be confirmed against CAR *************"]
[]
[]
["Signed: ",null,null,null,null,null,"Date:","2026-12-03"]

{"sheet":"Energy Form 1","index":5,"n_rows":29,"n_cols":8,"rows_kept":29,"cut":false,"hidden":false,"merged":[[15,0,15,2],[15,3,15,4],[15,6,15,8],[17,0,17,8],[18,0,24,8],[13,0,13,2],[13,3,13,4],[13,6,13,8],[14,0,14,2],[14,3,14,4],[14,6,14,8],[11,0,11,2],[11,3,11,4],[11,6,11,8],[12,0,12,2],[12,3,12,4],[12,6,12,8],[9,0,9,2],[9,3,9,4],[9,6,9,8],[10,0,10,2],[10,3,10,4],[10,6,10,8],[2,6,2,8],[4,1,4,4],[6,3,6,4],[6,6,6,7],[8,0,8,2],[8,3,8,4],[8,6,8,8]]}
[{"$f":"+'Cover Page'!C39","v":2025}," Annual Reporting of Energy Usage/Export"]
[]
[{"$f":"+'Cover Page'!B31","v":"Permit EPR/GP3031JB"},null,null,null,null,"Operator: ",{"$f":"+'Cover Page'!B37","v":"Vital Energi (Drakelow) LTD"}]
[]
["Facility:",{"$f":"+'Cover Page'!B33:I33","v":"Issue Date:"},null,null,null,"Form:","Energy 1"]
[]
["Reporting  Period from: ",null,null,{"$f":"+'Perf. Form 1'!D6:E6","v":"Wednesday January 1, 2025"},null,"to:",{"$f":"+'Perf. Form 1'!G6:H6","v":"Wednesday, December 31, 2025"}]
[]
["Energy Source",null,null,"Energy Usage",null,"Unit","Specific Usage (KWh/tonne incinerated"]
["Electricity Produced",null,null,{"$f":"+'Operational Data'!G27","v":99111},null,"MWh",{"$f":"+'Operational Data'!H27","v":757.56718745222736}]
["Electricity Imported   ",null,null,{"$f":"+'Operational Data'!G29","v":1184},null,"MWh",{"$f":"+'Operational Data'!H29","v":9.0500504479163482}]
["Electricity Exported",null,null,{"$f":"+'Operational Data'!G28","v":85331},null,"MWh",{"$f":"+'Operational Data'!H28","v":652.23805301617392}]
["Gas Oil",null,null,"N/A",null,"tonnes"]
["Steam/hot water exported",null,null,{"$f":"+'Operational Data'!G31","v":0},null,"GWh",{"$f":"+'Operational Data'!H31","v":"-"}]
[]
[]
[]
["Operator’s comments :"]
["N/A"]
[]
[]
[]
[]
[]
[]
[]
[]
[]
["Signed: ",null,null,null,null,null,"Date:","2026-12-03"]

{"sheet":"Permit Compliance","index":6,"n_rows":34,"n_cols":12,"rows_kept":34,"cut":false,"hidden":false,"merged":[[24,1,24,2],[27,1,27,2],[28,0,28,8],[19,7,19,8],[19,1,19,2],[19,3,19,5],[21,3,21,5],[22,3,22,5],[24,3,24,5],[27,3,27,5],[21,1,21,2],[26,1,26,2],[26,3,26,5],[25,1,25,2],[25,3,25,5],[23,3,23,4],[8,11,20,11],[30,0,30,10],[18,0,18,10],[35,1,35,3],[35,4,35,6],[35,7,35,9],[31,1,31,3],[31,4,31,6],[31,7,31,9],[32,1,32,3],[32,4,32,6],[32,7,32,9],[22,1,22,2],[23,1,23,2],[14,0,14,1],[14,2,14,4],[36,1,36,3],[36,4,36,6],[36,7,36,9],[33,1,33,3],[33,4,33,6],[33,7,33,9],[34,1,34,3],[34,4,34,6],[34,7,34,9],[14,5,14,8],[15,0,15,1],[16,2,16,4],[16,5,16,8],[15,2,15,4],[15,5,15,8],[16,0,16,1],[7,0,7,1],[7,2,7,8],[8,0,8,1],[8,2,8,4],[8,5,8,8],[37,4,37,8],[9,0,9,1],[9,2,9,4],[9,5,9,8],[10,0,10,1],[10,2,10,4],[10,5,10,8],[11,0,11,1],[11,2,11,4],[11,5,11,8],[12,0,12,1],[12,2,12,4],[12,5,12,8],[13,0,13,1],[13,2,13,4],[13,5,13,8]]}
[{"$f":"+'Cover Page'!$B$29","v":"Annual Performance Report 2025"},null,null,null,{"$f":"+'Cover Page'!$B$33","v":"Issue Date:"}]
[]
["Summary of Permit Compliance"]
[]
["Compliance with permit limits for continuously monitored pollutants"]
[]
["The plant met its emission limits as shown in the table below:"]
["Substance",null,"Percentage time compliant during operationNote 1",null,null,null,null,null,null,null,null,"Notes:"]
[null,null,"Half-hourly limit",null,null,"Daily limit",null,null,null,null,null,"Note 1: Please report to 2 decimal places, i.e. xx.xx%\n\nNote 2: Please enter into this table any permit non-compliances that the EA has given a CCS score for. Please also enter any other non-compliances which you have notified to the EA (e.g. ELV exceedances) but which have not yet been assessed by the EA. There is no need to enter any notifications which were subsequently assessed by the EA not to be permit breaches.  \n\nNote 3: Please enter information here (rather than just referencing the notifications that were sent to the EA) including where relevant the incineration line reference, pollutant and value of the measured result for any ELV exceedances.   \n\n"]
["Particulates",null,0.99990000000000001,null,null,0.999]
["Oxides of nitrogen",null,0.99990000000000001,null,null,0.99450000000000005]
["Sulphur dioxide",null,0.99980000000000002,null,null,0.99360000000000004]
["Carbon monoxide",null,0.99990000000000001,null,null,1]
["Total organic carbon",null,0.99990000000000001,null,null,1]
["Hydrogen chloride",null,0.99990000000000001,null,null,0.999]
["Hydrogen fluoride",null,1,null,null,1]
[null,null,0.99990000000000001,null,null,0.998]
[]
["Summary of non-compliances under the permit Note 2"]
["Date","Summary of non-compliance Note 3",null,"Reason ",null,null,"Measures taken to prevent reoccurrence","CCS score if applicable*"]
[null,null,null,null,null,null,null,"Impact","Root cause"]
["2025-03-07","Stream 3 SO2. 143.6mg/Nm3 over the daily average. ",null,"A Turbine trip, followed by the feeding of RDF, impacted three half hourly readings for SO2 emissions on Stream 3, and consequently the daily average. This is believed to fit the definition of OTNOC rather than Abnormal Operation. The daily average emission was calculated to be 146.3 mg/Nm3 and exceeded the backstop limit of 50 mg/Nm3. ",null,null,"Further tuning of the control systems. ","0.1\nScore\n\nCCS\n4.1\n\nQ1","Turbine trip"]
["2025-04-15","Stream 2 SO2. Average of 221.1mg/Nm3 over the half hour period. ",null,"Stream 2 tripped on high superheated steam temperature. The Metering Bin screws were restarted and it was not noted that the current SO2 readings were high. The result was a high SO2 reading which exceeded the half hour maximum limit. All subsequent half hour readings were compliant.",null,null,"Lime dosing was increased to ensure the daily average did not exceed.","Q2","Stream trip"]
["2025-06-27","Stream 3 CO. Average of 104mg/Nm3 over the half hour period. ",null,"Stream 3 CO. Average of 104mg/Nm3 over the half hour period. ",null,null,"Stream taken off fuel and Combustion Air Fan dampers controlled manually to get the CO under control. ","0.2\nscore\n\nCCS\n4.3\n\nQ2","Damper control loop"]
["2025-09-05","Stream 1 NOx. Daily average of 165.7 mg/Nm3.",null,"Daily average of 165.7 mg/Nm3 was recorded against a limit of 120 mg/Nm3, however, insufficient half-hourly averages were available to create a valid daily value for compliance purposes. \n\nOne category C4 non-compliances have been recorded against permit condition 3.2.1. This reflects that the process contribution was less than 10% of the prevailing air quality standard for Sulphur dioxide exceedance on this date. ",null,null,"N/A","0.1 \nscore\n\nCCS\n4.4\n\nQ3","High NOx readings \nwhen going on\nwaste."]
["2025-10-01","Stream 3 SO2. 315.5mg/Nm3 within the 30 minute maximum. ",null,"Stream 3 breached on SO2 30 min avg at 17:29 01/10/25 this was during shutting down of the stream after a plant failure with burners in service. The fuel feed was briefly re-started in the action of emptying the Metering Bin. A couple burners dropped out and the CEMS equipment recorded a CO spike and soon after the SO2 spiked to 780+. CO poisoning of the CEMS may have also contributed to the reading.",null,null,"Stopped the feed when the large spike in SO2 occurred. Checked that lime dosing and rebox were in service and noted that the lime dosing screw had just tripped. Stream was being shut down due to a plant failure.","0.1 score\n\nCCS 4.5\n\nQ4","Briefly re-starting\nwaste feed whilst \nshutting down. "]
[]
[]
["*If the Environment Agency (EA) has given a Compliance Classification Scheme (CCS) score due to a permit non-compliance it should be entered here (CCS4 = No impact; CCS3 = Minor impact; CCS2 = Significant impact; CCS1 = Major impact). If the EA has not yet assessed a non-compliance which you have notified to them, these columns should be left blank. Enter N/A if no score was given for the root cause.  "]
[]
["Summary of any complaints received and actions to taken to resolve them."]
["Date","Summary of complaint [including Line/Reference]",null,null,"Reason (including whether substantiated by the operator or the EA)",null,null,"Measures taken to prevent reoccurrence"]
["2025-02-19","Offtake vehicle parked on the highway outside site awaiting the gatehouse opening hours. ",null,null,"Offtake vehicle parked on the highway outside site awaiting the gatehouse opening hours. ",null,null,"Gatehouse opening hours have been extended and note sent out to all delivery and offtake providers reminding them of our permitted hours on site. "]
["2025-07-28","Reports of odor coming from site, reported by resident at Dracon Village. Complaint referenced the last couple of months, ",null,null,"Complaint was received by Vital Energi and was shared with the site local EA representative. ",null,null,"External company was contacted to perform an odour survey. The survey was compiled in November and shared with the Environment Agency. "]

{"sheet":"Improvements","index":7,"n_rows":39,"n_cols":5,"rows_kept":39,"cut":false,"hidden":false,"merged":[[37,0,37,8],[38,0,47,8],[4,0,4,8],[5,0,13,8],[15,0,15,8],[16,0,24,8],[26,0,26,8],[27,0,35,8]]}
[{"$f":"+'Cover Page'!$B$29","v":"Annual Performance Report 2025"},null,null,null,{"$f":"+'Cover Page'!$B$33","v":"Issue Date:"}]
[]
["Summary of Plant Improvements"]
[]
["Summary of any efficiency improvements that have been completed within the year."]
["There has been modification to our abatement system (lime) over the year to improve our dosing efficiency. A new rotary valve arrangement was fitted to the dosing system to alleviate issues with tramp air entering the system. The lime dosing system has also been automated with further tuning administered over the year. The dosing system now allows the active targeting of either HCL or SO2, dependent on which is furthest from setpoint."]
[]
[]
[]
[]
[]
[]
[]
[]
[]
["Summary of any permit improvement conditions that have been completed within the year and the resulting environmental benefits."]
["IC1: The Operator shall submit a written report to the Environment Agency on the implementation of its Environmental Management System (EMS) and the progress made in the certification of the system by an external body or if appropriate submit a schedule by which the EMS will be certified. (Completed)\n\nIC2: The operator shall submit a written proposal to the Environmental Agency to carry out tests to determine the size distribution of the particulate matter in the exhaust gas emissions to air from emission points A1, A2, and A3 identifying the fractions within the PM10, and PM2.5 ranges. On receipt of written approval from the Environment Agency to the proposal and the timeline, the operator shall carry out the tests and submit to the Environment Agency a report of the results. (Completed)\n\nIC3: The Operator shall submit a written report to the Environment Agency on the commissioning of the installation. The report shall summarise the environmental performance of the plant as installed against the design parameters set out in the Application. The report shall also include a review of the performance of the facility against the conditions of this permit and details of procedures developed during commissioning for achieving and demonstrating compliance with permit conditions and confirm that the Environmental Management System (EMS) has been updated accordingly. (Completed)\n\nIC5: The Operator shall submit a written report to the Environment Agency describing the performance and optimisation of:\n• The Selective Non Catalytic Reduction (SNCR) system and combustion settings to minimise oxides of nitrogen (NOx). The report shall include an assessment of the level of NOx, N2O and NH3 emissions that can be achieved under optimum operating conditions and an assessment of the benefits of using catalytic bag filters to further reduce NOx emissions.\n• The lime injection system for minimisation of acid gas emissions.\n• The carbon injection system for minimisation of dioxin and heavy metal emissions.\n• The bag filter system for minimisation of particulate matter. (Completed)\n\nIC7:The Operator shall submit a written summary report to the Environment Agency to confirm that the performance of Continuous Emission Monitors for parameters as specified in Table S3.1 and Table S3.1(a) complies with the requirements of BS EN 14181, specifically the requirements of QAL1, QAL2 and QAL3. The report shall include the results of calibration and verification testing,  (Completed)\n\nIC8: During commissioning, the operator shall carry out tests to demonstrate whether the furnace combustion air will ensure that negative pressure is achieved throughout the reception / tipping hall. The tests shall demonstrate whether air is pulled through the reception / tipping hall and bunker area and into the furnace with dead spots minimised. The operator shall submit a report to the Environment Agency, for approval, summarising the findings along with any proposed improvements if required.  (Completed)\n\nIC9: The operator shall carry out a programme of dioxin and dioxin like PCB monitoring over a period and frequency agreed with the Environment Agency. The operator shall submit a report to the Environment Agency with an analysis of whether dioxin emissions can be considered to be stable. (Completed)\n\nIC10: The operator shall carry out a programme of mercury monitoring over a period and frequency agreed with the Environment Agency. The operator shall submit a report to the Environment Agency with an analysis of whether the waste feed to the plant can be proven to have a low and stable mercury content. (Completed)\n\n\n"]
[]
[]
[]
[]
[]
[]
[]
[]
[]
["Summary of any changes to the plant or operating techniques which required a variation to the permit and a summary of the resulting environmental impact."]
["None"]
[]
[]
[]
[]
[]
[]
[]
[]
[]
["Summary of any other improvements made to the plant or planned to be made and a summary of the resulting environmental benefits."]
["None"]

{"sheet":"Public Liasion","index":8,"n_rows":29,"n_cols":5,"rows_kept":29,"cut":false,"hidden":false,"merged":[[23,0,24,1],[23,2,24,8],[25,0,26,1],[25,2,26,8],[28,0,28,8],[17,0,18,1],[17,2,18,8],[19,0,20,1],[19,2,20,8],[21,0,22,1],[21,2,22,8],[16,0,16,1],[16,2,16,8],[5,0,5,1],[5,2,5,8],[6,0,7,1],[6,2,7,8],[8,0,9,1],[8,2,9,8],[10,0,11,1],[10,2,11,8],[12,0,13,1],[12,2,13,8],[15,0,15,8]]}
[{"$f":"+'Cover Page'!$B$29","v":"Annual Performance Report 2025"},null,null,null,{"$f":"+'Cover Page'!$B$33","v":"Issue Date:"}]
[]
["Details of Public & Stakeholder Liaison"]
[]
["Summary of events held during the reporting year."]
["Date",null,"Description"]
[null,null,"None"]
[]
[]
[]
[]
[]
[]
[]
[]
["List of events planned for next year"]
["Date",null,"Description"]
["TBC",null,"Community Liason"]
[]
[]
[]
[]
[]
[]
[]
[]
[]
[]
["If you wish to be involved in the public liaison programme, please contact _________________Drakelowefw@vitalenergi.co.uk"]

{"sheet":"CO2 N20","index":9,"n_rows":26,"n_cols":6,"rows_kept":26,"cut":false,"hidden":false,"merged":[[16,2,16,3],[17,0,17,3],[19,2,19,3],[22,2,22,3],[25,1,25,3],[13,0,13,3],[4,0,4,3],[8,2,8,3],[9,0,9,3],[11,2,11,3],[12,0,12,1]]}
["Annual Peformance Report 2025",null,"Drakelow Energy Generation Facility"]
[]
["Carbon dioxide emissions and biogenic content of waste inputs",null,null,null,null,"Notes:"]
[]
["Carbon dioxide emissions (all types of plant)"]
[null,"Annual mass of carbon dioxide released","tonnes ","180,213T"]
[null,"Annual mass of carbon dioxide released per tonne of waste burned","t CO2 / t waste ",{"$f":"180213/129467","v":1.391960885785567}]
[null,"Annual mass of carbon dioxide released per MWh of energy exported","t CO2 / MWh export ",{"$f":"180213/85330","v":2.1119535919371852}]
[null,"Description of how annual carbon dioxide mass emission has been calculated. \nSee Note 1","Corrected and calibrated CEMS data.",null,null,"Note 1: All permits require operators to continuously monitor CO2 to EN14181 and flow to BS EN 16911-2 (unless otherwise agreed in writing). Operators must therefore use the results from these instruments to calculate their annual CO2 emissions. Where an operator does not have a flow meter calibrated to BS EN 16911-2, the averaged flow measurement from that year's periodic monitoring can be used instead. If the plant does not have calibrated CO2 CEMS, a suitably justified emissions factor can be used."]
["Nitrous oxide emissions (only plants which use ammonia or urea to abate NOx emissions)"]
[null,"Annual mass emissions of nitrous oxide","tonnes N2O","512T"]
[null,"Description of how annual nitrous oxide mass emission has been calculated\nSee Note 2","Corrected and calibrated CEMS data.",null,null,"Note 2: All permits require operators to continuously monitor N2O to EN14181 and flow to BS EN 16911-2, unless otherwise agreed in writing. Operators must therefore use the results from these instruments to calculate their annual N2O emissions. Where an operator does not have a flow meter calibrated to BS EN 16911-2, the averaged flow measurement from periodic monitoring can be used instead. If the plant does not have calibrated N2O CEMS, data from periodic monitoring or a suitably justified emissions factor can be used instead."]
["Total annual carbon dioxide + nitrous oxide emissions. \nSee Note 3. ",null,"tonnes CO2e",{"$f":"180213+135680","v":315893},null,"Note 3: Total annual carbon dioxide and nitrous oxide emissions reported as carbon dioxide equivalent where 1 tonne nitrous oxide is equivalent to 265 tonnes carbon dioxide."]
["Biogenic CO2 emissions (See Note 4)",null,null,null,null,"Note 4: Only plants combusting residual municipal waste, refuse derived fuel or solid recovered fuel need complete this section. "]
[null,"Percentage of total carbon dioxide emissions arising from biogenic waste","%"]
[null,"No. of measurements undertaken","Number"]
[null,"Description of how percentage biogenic carbon dioxide emissions have been measured or calculated.\nSee Note 5","N/A",null,null,"Note 5: The results from C14 sampling should be used if this is carried out at the plant (either via an installed sampler or from spot samples).  \nOtherwise, as an approximation (and in lieu of any more accurate metrics which may be developed in future), the measured or estimated biogenic fraction by net calorific value (see Note 6) can be assumed to be the same as the biogenic CO2 fraction of the total CO2 emissions from the plant. "]
["Biogenic fraction of waste feedstock (See Note 4)"]
[null,"Yearly average biogenic percentage of the waste by net calorific value (NCV)","%"]
[null,"Description of how biogenic percentage (by NCV) has been calculated or estimated. \nSee Note 6","N/A",null,null,"Note 6: If C14 sampling is carried out at the plant, the methodology set out in the embedded document entitled \"Renewable Energy Association Energy Content of Fuels - Description of Method\" embedded below can be used to calculate the biogenic percentage by net calorific value. Otherwise, data from waste sampling or BIOMA software can be used; or if none of these are available, an estimated figure with justification or a figure assumed on the basis of up-to-date industry data can be used. "]
[null,"Yearly average biogenic percentage of the waste by mass","%"]
[null,"If waste sampling undertaken, no. of samples used to ascertain average biogenic percentages above","Number"]
[null,"Description of how biogenic percentage (by mass) has been calculated or estimated. \nSee Note 7","N/A",null,null,"Note 7: Where available, data from waste sampling should be used; otherwise, an estimated figure with justification can be used, or a figure assumed on the basis of up-to-date industry data. "]
[]
[null,"Comments:"]
[null,"Carbon 14 instruments fitted but not currently operational. "]

{"sheet":"Residues","index":10,"n_rows":62,"n_cols":11,"rows_kept":62,"cut":false,"hidden":false,"merged":[[58,0,58,6],[60,0,60,6],[61,0,66,6],[56,0,56,1],[56,3,56,4],[56,5,56,6],[57,0,57,1],[57,3,57,4],[57,5,57,6],[54,0,54,1],[54,3,54,4],[54,5,54,6],[55,0,55,1],[55,3,55,4],[55,5,55,6],[51,0,51,6],[52,0,53,1],[52,2,53,2],[52,3,52,6],[53,3,53,4],[53,5,53,6],[43,0,44,1],[43,2,44,6],[45,0,46,1],[45,2,46,6],[47,0,48,1],[47,2,48,6],[38,0,38,1],[38,2,38,6],[39,0,40,1],[39,2,40,6],[41,0,42,1],[41,2,42,6],[37,0,37,6],[4,0,25,8],[4,10,13,13],[30,0,31,6],[32,0,33,6],[34,0,35,6]]}
["Annual Performance Report 2025",null,null,null,"Drakelow Energy Generation Facility"]
[]
["Summary of Residue Handling for the reporting year"]
[]
["In January 2025 several ‘offtakers’ were trialled for Incinerator Bottom Ash (IBA) including Pro Group Construction Ltd, Johnson Aggregates & Recycling Ltd and Fortis IBA Ltd.  Since 3rd February 2025 IBA has solely been disposed of by Fortis IBA Ltd at their A303 Enviropark site in Barton Stacey, Andover.  This facility is permitted to accept waste classification code 19 01 12 (bottom ash and slag other than those mentioned in 19 01 11) under permit EPR/FB3085GN issued by the Environment Agency.  Vital Energi Drakelow has followed the Environmental Services Association (ESA) protocol for sampling and testing incinerator bottom ash to assess its hazard status. No exceedances of the HP4, HP8, HP7 hazardous thresholds were reported for the samples which were obtained and analysed in 2025 (24 sample rolling assessment period).  Equally, there were no exceedances of HP14 (indicative) (municipal waste, moving grate technology and 2021 specification factors applied).  All IBA is quarantined and stored in batches at Fortis until the hazard sample results for each batch are received.  The off-site IBA facility processes the ash to produce Incinerator Bottom Ash Aggregate (IBAA) and to recover ferrous and non-ferrous metal.\n\nUnder Grate Ash (UGA) and Boiler Fly Ash (BFA) are both handled by Acumen Waste Services Ltd and disposed of by Augean South Ltd at their East Northants Resource Management Facility (ENRMF) in King’s Cliffe, Peterborough.  This facility is permitted to accept waste classification code 19 01 11 (bottom ash and slag containing hazardous substances) and waste classification code 19 01 15 (boiler dust containing hazardous substances) under permit EPR/TP3430GW issued by the Environment Agency.  ENRMF is a specialised hazardous and non-hazardous waste landfill site.\n\nAir Pollution Control residues (APCr) are handled by Acumen Waste Services Ltd and disposed of by Castle Waste Services Ltd at their Waste Treatment and Transfer Facility in Ilkeston, Derbyshire.  This facility is permitted to accept waste classification code 19 01 07 (solid wastes from gas treatment) under permit EPR/AP3337SJ issued by the Environment Agency.  APCr is treated / neutralised to produce a non-hazardous solid material which is used in land reclamation projects.  Alternatively, for disposal to landfill, ash is also treated to a non-hazardous state.",null,null,null,null,null,null,null,null,null,"Include in here a summary of residue handling regimes and destinations "]
[]
[]
[]
[]
[]
[]
[]
[]
[]
[]
[]
[]
[]
[]
[]
[]
[]
[]
[]
[]
[]
[]
["Residue Quality Monitoring Requirements"]
[]
["Summary of monitoring undertaken and compliance"]
["Samples of IBA are taken twice a month, with APCR sampled once a month for permit compliance requirements."]
[]
["The sample regime is in place so that samples can be analysed each month to assess the hazard status in accordance with the ESA protocol."]
[]
["No hazardous results were received for IBA in 2025"]
[]
[]
["Commentary on any specific events"]
["Date & Event",null,"Description"]
[null,null,"N/A"]
[]
[]
[]
[]
[]
[]
[]
[]
[]
[]
[]
["Residue Quality Monitoring Results"]
["Parameter (unit) ",null,"Limit*","Normal Operation "]
[null,null,null,"Bottom ash  ",null,"APC Residues"]
["Loss on Ignition (average %)",null,"<5%",1.96]
["Total Organic Carbon (average %)",null,"<3%",0.97]
["No. of Assessments Undertaken",null,"---",24,null,12]
["No. of Hazardous Results",null,"---",0]
["* The permit will specify a limit of either 5% loss on ignition or 3% total organic carbon. If both are measured anyway, please enter the results here, even where the limit does not apply. "]
[]
["Comments :"]
["N/A"]

{"sheet":"Water","index":11,"n_rows":25,"n_cols":9,"rows_kept":25,"cut":false,"hidden":false,"merged":[[28,0,28,2],[28,3,28,4],[29,0,29,2],[29,3,29,4],[25,0,25,2],[25,3,25,4],[26,0,26,2],[26,3,26,4],[27,0,27,2],[27,3,27,4],[24,0,24,2],[24,3,24,4],[14,0,15,1],[14,2,15,8],[16,0,17,1],[16,2,17,8],[18,0,19,1],[18,2,19,8],[21,0,21,8],[22,0,22,2],[22,3,22,4],[23,0,23,2],[23,3,23,4],[5,0,6,8],[7,0,8,8],[9,0,10,8],[12,0,12,8],[13,0,13,1],[13,2,13,8]]}
["Annual Performance Report 2025",null,null,null,"Drakelow Energy Generation Facility"]
[]
["Emissions to Water"]
[]
["Summary of monitoring undertaken and compliance"]
["Boiler blowdown water, and turbine drains are discharged to the effluent treatment plant. The pH is monitored and discharged if between 6-9pH. \nIf out of specification the effluent is treated and recirculated until within tolerance before being discharged to the drainage system."]
[]
["Monitoring of water discharged from site is performed on behalf of the site owners by an external company (Silkstone). The three compliance tests the company test for are PH, Suspended Solids, and Visible oil and grease. All results are within the compliance limits. "]
[]
[]
[]
[]
["Commentary on any specific events"]
["Date & Event",null,"Description"]
["17/06/2025",null,"Effluent PH probes calibrated by Environgen as per service report 34807"]
[]
[]
[]
[]
[]
[]
["Emissions to Water / Sewer"]
["Parameter",null,null,"Monitoring Frequency",null,"Limit","Target","Max.","Average"]
["pH",null,null,"When releasing effluent",null,"pH 6 - 9","pH 6 - 9","Probe 2 : 8.81pH\nProbe 3 : 8.99pH","Probe 2 : 7.480pH\nProbe 3 : 7.496pH"]
["Temperature",null,null,"Prior to the release of water from clean water tanks",null,"No limit set",null,"Probe 2 : 24.3C\nProbe 3 : 24.4C","Probe 2 : 14.73C\nProbe 3 : 15.41C"]

{"sheet":"Air (periodic)","index":12,"n_rows":40,"n_cols":11,"rows_kept":40,"cut":false,"hidden":false,"merged":[[38,0,38,9],[39,0,40,9],[35,0,35,1],[35,3,35,4],[36,0,36,1],[36,3,36,4],[37,0,37,1],[37,3,37,4],[32,0,32,1],[32,3,32,4],[33,0,33,1],[33,3,33,4],[34,0,34,1],[34,3,34,4],[29,0,29,1],[29,3,29,4],[30,0,30,1],[30,3,30,4],[31,0,31,1],[31,3,31,4],[26,0,26,1],[26,3,26,4],[27,0,27,1],[27,3,27,4],[28,0,28,1],[28,3,28,4],[23,0,23,1],[23,3,23,4],[24,0,24,1],[24,3,24,4],[25,0,25,1],[25,3,25,4],[20,0,20,1],[20,3,20,4],[21,0,21,1],[21,3,21,4],[22,0,22,1],[22,3,22,4],[17,0,17,1],[17,3,17,4],[18,0,18,1],[18,3,18,4],[19,0,19,1],[19,3,19,4],[15,0,15,1],[15,3,15,4],[15,10,16,10],[15,11,16,11],[15,12,16,12],[16,0,16,1],[16,3,16,4],[12,0,12,1],[12,3,12,4],[13,0,13,1],[13,3,13,4],[13,10,14,12],[14,0,14,1],[14,3,14,4],[5,0,6,9],[5,10,8,13],[8,0,8,9],[9,0,10,1],[9,2,10,2],[9,3,10,4],[9,5,9,9],[9,10,11,13],[11,0,11,1],[11,3,11,4]]}
["Annual Performance Report 2025",null,null,null,"Drakelow Energy Generation Facility"]
[]
["Emissions to Air (periodically monitored)"]
[]
["Summary of monitoring undertaken, standards used and compliance",null,null,null,null,null,null,null,null,null,"Notes:"]
["Monitoring data taken from 4X quarterly 'stack emissions monitoring reports'. Q1 testing performed by Envirocare. Q2, Q3, Q4 testing performed by CuraTerrae.",null,null,null,null,null,null,null,null,null,"Template may require adjustment for any bespoke monitoring requirements of permit - please also check that all default ELV values, reference periods and the stated oxygen reference value match those for your plant, and edit if necessary"]
[]
[]
["Results of emissions to air that are periodically monitored - oxygen reference 11%"]
["Substance",null,"Ref. Period","Emission Limit Value",null,"Average",null,null,null,null,"User to add additional tables as necessary, depending on whether quarterly or bi-annual reporting is required for the compliance year"]
[null,null,null,null,null,"A1","A2","A3","A4","A5"]
["Hydrogen fluoride",null,"1 hr","1.5 mg/m3",null,0.17,0.12,0.06,"N/A","N/A"]
["Cd and Tl and their compounds",null,"0.5-8hrs","0.03 mg/m3",null,1E-3,1E-3,2E-3,"N/A","N/A"]
["Hg and its compounds",null,"0.5-8hrs","0.03 mg/m3",null,6.3250000000000003E-4,1.1525000000000001E-3,8.1499999999999997E-4,"N/A","N/A"]
["Sb, As, Pb, Cr, Co, Cu, Mn, Ni, V and their compounds",null,"0.5-8hrs","0.45 mg/m3",null,2.5000000000000001E-2,4.2000000000000003E-2,2.1999999999999999E-2,"N/A","N/A"]
["Dioxins & Furans (I-TEQ)",null,"6-8hrs","0.04 ng/m3",null,2.3E-3,7.7999999999999996E-3,3.0000000000000001E-3,"N/A","N/A"]
["PCBs (WHO-TEQ Humans / Mammals)",null,"6-8hrs","None set ng/m3",null,5.9000000000000003E-4,7.9100000000000004E-3,1.6000000000000001E-3,"N/A","N/A"]
["PCBs (WHO-TEQ Fish)",null,"6-8hrs","None set ng/m3",null,3.0000000000000001E-5,1.4999999999999999E-4,8.2999999999999998E-5,"N/A","N/A"]
["PCBs (WHO-TEQ Birds)",null,"6-8hrs","None set ng/m3",null,1.8500000000000001E-3,4.7800000000000004E-3,4.5399999999999998E-3,"N/A","N/A"]
["Dioxins & Furans (WHO-TEQ Humans / Mammals)",null,"6-8hrs","None set ng/m3",null,2.6749999999999999E-3,8.1250000000000003E-3,3.0149999999999999E-3,"N/A","N/A"]
["Dioxins & Furans (WHO-TEQ Fish)",null,"6-8hrs","None set ng/m3",null,2.7499999999999998E-3,9.0500000000000008E-3,3.31E-3,"N/A","N/A"]
["Dioxins & Furans (WHO-TEQ Birds)",null,"6-8hrs","None set ng/m3",null,4.4749999999999998E-3,1.312E-2,6.0899999999999999E-3,"N/A","N/A"]
["Anthanthrene",null,"6-8hrs","None set µg/m3",null,1.3500000000000001E-3,1.32E-3,1.4E-3,"N/A","N/A"]
["Benzo(a)anthracene",null,"6-8hrs","None set µg/m3",null,1.3500000000000001E-3,1.325E-3,4.15E-3,"N/A","N/A"]
["Benzo(a)pyrene",null,"6-8hrs","None set µg/m3",null,1.3500000000000001E-3,1.2999999999999999E-3,1.4E-3,"N/A","N/A"]
["Benzo(b)fluoranthene",null,"6-8hrs","None set µg/m3",null,1.6000000000000001E-3,2.1250000000000002E-3,7.6750000000000004E-3,"N/A","N/A"]
["Benzo(b)naptho(2,1-d) thiophene",null,"6-8hrs","None set µg/m3",null,1.3500000000000001E-3,"0.0013.",1.9E-3,"N/A","N/A"]
["Benzo(c)phenanthrene",null,"6-8hrs","None set µg/m3",null,1.3500000000000001E-3,1.2999999999999999E-3,3.15E-3,"N/A","N/A"]
["Benzo(ghi)perylene",null,"6-8hrs","None set µg/m3",null,3.3999999999999998E-3,3.0000000000000001E-3,1.9E-3,"N/A","N/A"]
["Benzo(k)fluoranthene",null,"6-8hrs","None set µg/m3",null,1.3500000000000001E-3,1.2999999999999999E-3,3.8999999999999998E-3,"N/A","N/A"]
["Cholanthrene",null,"6-8hrs","None set µg/m3",null,1.3500000000000001E-3,1.2999999999999999E-3,1.4E-3,"N/A","N/A"]
["Chrysene",null,"6-8hrs","None set µg/m3",null,1.3500000000000001E-3,2.4199999999999998E-3,1.2200000000000001E-2,"N/A","N/A"]
["Cyclopenta(cd)pyrene",null,"6-8hrs","None set µg/m3",null,1.3500000000000001E-3,5.1999999999999998E-3,1.4E-3,"N/A","N/A"]
["Dibenzo(ai)pyrene",null,"6-8hrs","None set µg/m3",null,1.3500000000000001E-3,1.2999999999999999E-3,1.4E-3,"N/A","N/A"]
["Dibenzo(ah)anthracene",null,"6-8hrs","None set µg/m3",null,1.3500000000000001E-3,1.2999999999999999E-3,1.4E-3,"N/A","N/A"]
["Fluoranthene",null,"6-8hrs","None set µg/m3",null,1.4749999999999999E-2,1.41E-2,6.1600000000000002E-2,"N/A","N/A"]
["Indeno(123-cd) pyrene",null,"6-8hrs","None set µg/m3",null,1.3500000000000001E-3,1.2999999999999999E-3,1.4E-3,"N/A","N/A"]
["Naphthalene",null,"6-8hrs","None set µg/m3",null,2.92875,2.927,3.1825000000000001,"N/A","N/A"]
["Comments :"]
["N/A"]

{"sheet":"Air (CEMS)","index":13,"n_rows":30,"n_cols":14,"rows_kept":30,"cut":false,"hidden":false,"merged":[[27,0,27,12],[29,0,30,12],[11,11,11,12],[12,13,13,15],[13,0,14,0],[14,13,15,13],[14,14,15,14],[14,15,15,15],[5,0,6,12],[7,0,8,12],[10,0,10,12],[11,0,12,0],[11,1,12,1],[11,2,12,2],[11,3,11,4],[11,5,11,6],[11,7,11,8],[11,9,11,10]]}
["Annual Performance Report 2025",null,null,null,null,null,null,null,"Drakelow Energy Generation Facility"]
[]
["Emissions to Air (continously monitored)"]
[null,null,null,null,null,null,null,null,null,null,null,null,null,"Notes:"]
["Summary of monitoring undertaken, standards used and compliance",null,null,null,null,null,null,null,null,null,null,null,null,"Template may require adjustment for any bespoke monitoring requirements of permit"]
["CEMS enabled with Envirocare software.  System has redundency measure via the second analyser. ",null,null,null,null,null,null,null,null,null,null,null,null,"Please check that all default ELV values, reference periods and the stated oxygen reference value match those for your plant, and edit if necessary"]
[null,null,null,null,null,null,null,null,null,null,null,null,null,"Report to 1 decimal place"]
[]
[]
[]
["Results of emissions to air that are continuously monitored (maximum and average values for each line) - oxygen reference 6%"]
["Substance","Reference Period","Emission Limit Value","A1",null,"A2",null,"A3",null,"A4",null,"A5"]
[null,null,null,"Max.","Avg.","Max.","Avg.","Max.","Avg.","Max.","Avg.","Max.","Avg."]
["Oxides of nitrogen","Daily mean","120 mg/m3 ",165.7,87.65,122.8,84.1,126.8,81.5,"N/A","N/A","N/A","N/A"]
[null,"½ hourly mean*","400 mg/m3 *",408.4,86.6,317.5,83.75,314.89999999999998,81,"N/A","N/A","N/A","N/A"]
["Particulates","Daily mean","5 mg/m3 ",24.6,0.3,3,0.2,0.9,0.1,"N/A","N/A","N/A","N/A"]
[null,"½ hourly mean*","30 mg/m3 *",44.5,0.3,7.5,0.3,2.1,0.1,"N/A","N/A","N/A","N/A"]
["Total Organic Carbon ","Daily mean","10 mg/m3 ",8.1999999999999993,0.1,1.9,0.3,1.7,0.2,"N/A","N/A","N/A","N/A"]
[null,"½ hourly mean*","20 mg/m3 *",58.7,0.1,9.6999999999999993,0.3,14.2,0.2,"N/A","N/A","N/A","N/A"]
["Hydrogen chloride ","Daily mean","6 mg/m3 ",7.2,3.3,5.8,3.8,6.5,3.4,"N/A","N/A","N/A","N/A"]
[null,"½ hourly mean*","60 mg/m3 *",42.8,3.3,46.7,3.8,99.5,3.4,"N/A","N/A","N/A","N/A"]
["Sulphur dioxide","Daily mean","30 mg/m3 ",88.2,20.2,30,19.2,143.6,23.5,"N/A","N/A","N/A","N/A"]
[null,"½ hourly mean*","200 mg/m3 *",1757.7,20.5,221.1,19.5,5931.7,23.8,"N/A","N/A","N/A","N/A"]
["Carbon monoxide ","Daily mean","50 mg/m3 ",12.6,0.6,7,2,6.4,0.4,"N/A","N/A","N/A","N/A"]
[null,"½ hourly mean* "," 100 mg/m3 *",73.900000000000006,0.6,92.9,2,104.4,0.4,"N/A","N/A","N/A","N/A"]
[null,"95%ile 10-min avg*","225 mg/m3 *","N/A","N/A","N/A","N/A","N/A","N/A","N/A","N/A","N/A","N/A"]
[" Ammonia","Daily mean","10 mg/m3",8.9,1.1000000000000001,10.5,1.2,12.7,1.4,"N/A","N/A","N/A","N/A"]
["* = delete if your plant does not have these limits\n"]
["Comments :"]
["A4 and A5 not applicable. 10 minute average on CO not applicable. "]

{"sheet":"HCl","index":14,"n_rows":79,"n_cols":17,"rows_kept":79,"cut":false,"hidden":false,"merged":[[12,16,15,18],[51,9,63,9],[66,9,78,9],[4,9,4,14],[4,1,4,3],[4,4,4,6],[48,0,51,6],[47,0,47,6],[6,9,18,9],[21,9,33,9],[36,9,48,9],[3,16,7,18],[9,16,11,18],[18,4,18,6]]}
[{"$f":"+'Cover Page'!$B$29","v":"Annual Performance Report 2025"},null,null,null,{"$f":"+'Cover Page'!$B$33","v":"Issue Date:"}]
[]
["Monitoring of Hydrogen Chloride emissions",null,null,"Whole Installation",null,null,"See  Notes in Cell Q3",null,null,{"$f":"+A3","v":"Monitoring of Hydrogen Chloride emissions"},null,null,null,"Per Combustion Line",null,null,"Notes:"]
[null,null,null,null,null,null,null,null,null,null,null,null,null,null,null,null,"User to add logic to complete Whole installation, Table A5:G18. From the data in Per Combustion Line, Table J6:O79, subject to No. of lines installed"]
[{"$f":"+'Cover Page'!C39","v":2025},"1/2 Hourly Reference Periods",null,null,"Daily Reference Periods"]
["mg/Nm3","1/2 hourly HCl ELV","Monthly mean of half-hourly averages","Highest half- hourly average","Daily HCl ELV","Monthly mean of  daily averages","Highest daily average",null,null,{"$f":"+A5","v":2025},"mg/Nm3","Monthly mean of half-hourly averages","Highest half- hourly average","Monthly mean of  daily averages","Highest daily average"]
["Jan",60,2.7,33,6,2.6,5.7,null,null,"A1","Jan",2.1,33,2,5.7]
["Feb",60,3.6,99.5,6,3.6,7.2,null,null,null,"Feb",3.6,42.8,3.5,7.2]
["Mar",60,2.7,43.7,6,2.6,5.3,null,null,null,"Mar",2,6.7,2,3.9,null,"Whole Installation table A5:G18:"]
["Apr",60,1.7,8.4,6,1.7,4.0999999999999996,null,null,null,"Apr",1.3,5,1.3,2.8,null,"Mean: for 1/2 hourly and daily periods calculate mean of values across all operational combustion lines for the month"]
["May",60,2.2000000000000002,43.8,6,2.2000000000000002,5.2,null,null,null,"May",1.8,7.9,1.8,4.4000000000000004]
["Jun",60,4.2,37.299999999999997,6,4.2,5.7,null,null,null,"Jun",4,37.299999999999997,4,5.7]
["Jul",60,2.8,28.5,6,2.6,5.4,null,null,null,"Jul",3,8.3000000000000007,2.6,4.4000000000000004,null,"Maximum: for 1/2 hourly and daily periods use the highest value across all operational combustion lines for the month"]
["Aug",60,3.7,20.6,6,3.5,5,null,null,null,"Aug",4,8.3000000000000007,3.9,5]
["Sep",60,4.3,29.3,6,4.2,5.3,null,null,null,"Sep",4.4000000000000004,29.3,4.2,5.3]
["Oct",60,5,28.9,6,5.0999999999999996,6.5,null,null,null,"Oct",4.8,13.2,4.8,5.5]
["Nov",60,4.5,11.7,6,4.5,5.5,null,null,null,"Nov",4.4000000000000004,10.6,4.4000000000000004,5.5]
["Dec",60,5.2,32,6,5.0999999999999996,6.2,null,null,null,"Dec",5.2,13.8,5.0999999999999996,5.4]
[null,null,null,null,null,null,null,null,null,null,"Annual",{"$f":"AVERAGE(L7:L18)","v":3.3833333333333342},{"$f":"MAX(M7:M18)","v":42.8},{"$f":"AVERAGE(N7:N18)","v":3.3000000000000003},{"$f":"MAX(O7:O18)","v":7.2}]
[]
[null,null,null,null,null,null,null,null,null,{"$f":"+A5","v":2025},"mg/Nm3","Monthly mean of half-hourly averages","Highest half- hourly average","Monthly mean of  daily averages","Highest daily average"]
[null,null,null,null,null,null,null,null,null,"A2","Jan",3,12.9,3,5.5]
[null,null,null,null,null,null,null,null,null,null,"Feb",3.8,46.7,3.8,5.7]
[null,null,null,null,null,null,null,null,null,null,"Mar",3,24,2.9,5.3]
[null,null,null,null,null,null,null,null,null,null,"Apr",2.1,8.1,2.1,3.9]
[null,null,null,null,null,null,null,null,null,null,"May",3.3,43.8,3.3,5.2]
[null,null,null,null,null,null,null,null,null,null,"Jun",4.5999999999999996,27.5,4.5999999999999996,5.4]
[null,null,null,null,null,null,null,null,null,null,"Jul",2.8,7.9,2.8,4.5999999999999996]
[null,null,null,null,null,null,null,null,null,null,"Aug",3.7,11.9,3.6,5]
[null,null,null,null,null,null,null,null,null,null,"Sep",4.7,9.6,4.7,5]
[null,null,null,null,null,null,null,null,null,null,"Oct",5.2,28.9,5.2,5.8]
[null,null,null,null,null,null,null,null,null,null,"Nov",5,11.7,5,5.5]
[null,null,null,null,null,null,null,null,null,null,"Dec",5.2,10,5.0999999999999996,5.5]
[null,null,null,null,null,null,null,null,null,null,"Annual",{"$f":"AVERAGE(L22:L33)","v":3.8666666666666667},{"$f":"MAX(M22:M33)","v":46.7},{"$f":"AVERAGE(N22:N33)","v":3.8416666666666668},{"$f":"MAX(O22:O33)","v":5.8}]
[]
[null,null,null,null,null,null,null,null,null,{"$f":"+A5","v":2025},"mg/Nm3","Monthly mean of half-hourly averages","Highest half- hourly average","Monthly mean of  daily averages","Highest daily average"]
[null,null,null,null,null,null,null,null,null,"A3","Jan",3,14.4,2.8,5.4]
[null,null,null,null,null,null,null,null,null,null,"Feb",3.6,99.5,3.5,5.8]
[null,null,null,null,null,null,null,null,null,null,"Mar",3.1,43.7,3.1,5.0999999999999996]
[null,null,null,null,null,null,null,null,null,null,"Apr",1.7,8.4,1.7,4.0999999999999996]
[null,null,null,null,null,null,null,null,null,null,"May",1.5,7.4,1.5,3.1]
[null,null,null,null,null,null,null,null,null,null,"Jun",4,17.5,4,5.0999999999999996]
[null,null,null,null,null,null,null,null,null,null,"Jul",2.7,28.5,2.6,5.4]
[null,null,null,null,null,null,null,null,null,null,"Aug",3.4,20.6,3.2,4.5999999999999996]
[null,null,null,null,null,null,null,null,null,null,"Sep",4,8.3000000000000007,3.9,5]
[null,null,null,null,null,null,null,null,null,null,"Oct",5.2,17.399999999999999,5.2,6.5]
[null,null,null,null,null,null,null,null,null,null,"Nov",4.3,10.6,4.2,5.4]
["Comments :",null,null,null,null,null,null,null,null,null,"Dec",5.2,32,5.2,6.2]
[null,null,null,null,null,null,null,null,null,null,"Annual",{"$f":"AVERAGE(L37:L48)","v":3.4749999999999996},{"$f":"MAX(M37:M48)","v":99.5},{"$f":"AVERAGE(N37:N48)","v":3.4083333333333337},{"$f":"MAX(O37:O48)","v":6.5}]
[]
[null,null,null,null,null,null,null,null,null,{"$f":"+A5","v":2025},"mg/Nm3","Monthly mean of half-hourly averages","Highest half- hourly average","Monthly mean of  daily averages","Highest daily average"]
[null,null,null,null,null,null,null,null,null,"A4","Jan","N/A","N/A","N/A","N/A"]
[null,null,null,null,null,null,null,null,null,null,"Feb"]
[null,null,null,null,null,null,null,null,null,null,"Mar"]
[null,null,null,null,null,null,null,null,null,null,"Apr"]
[null,null,null,null,null,null,null,null,null,null,"May"]
[null,null,null,null,null,null,null,null,null,null,"Jun"]
[null,null,null,null,null,null,null,null,null,null,"Jul"]
[null,null,null,null,null,null,null,null,null,null,"Aug"]
[null,null,null,null,null,null,null,null,null,null,"Sep"]
[null,null,null,null,null,null,null,null,null,null,"Oct"]
[null,null,null,null,null,null,null,null,null,null,"Nov"]
[null,null,null,null,null,null,null,null,null,null,"Dec"]
[null,null,null,null,null,null,null,null,null,null,"Annual",{"$f":"AVERAGE(L52:L63)","v":{"$error":"#DIV/0!"}},{"$f":"MAX(M52:M63)","v":0},{"$f":"AVERAGE(N52:N63)","v":{"$error":"#DIV/0!"}},{"$f":"MAX(O52:O63)","v":0}]
[]
[null,null,null,null,null,null,null,null,null,{"$f":"+A5","v":2025},"mg/Nm3","Monthly mean of half-hourly averages","Highest half- hourly average","Monthly mean of  daily averages","Highest daily average"]
[null,null,null,null,null,null,null,null,null,"A5","Jan","N/A","N/A","N/A","N/A"]
[null,null,null,null,null,null,null,null,null,null,"Feb"]
[null,null,null,null,null,null,null,null,null,null,"Mar"]
[null,null,null,null,null,null,null,null,null,null,"Apr"]
[null,null,null,null,null,null,null,null,null,null,"May"]
[null,null,null,null,null,null,null,null,null,null,"Jun"]
[null,null,null,null,null,null,null,null,null,null,"Jul"]
[null,null,null,null,null,null,null,null,null,null,"Aug"]
[null,null,null,null,null,null,null,null,null,null,"Sep"]
[null,null,null,null,null,null,null,null,null,null,"Oct"]
[null,null,null,null,null,null,null,null,null,null,"Nov"]
[null,null,null,null,null,null,null,null,null,null,"Dec"]
[null,null,null,null,null,null,null,null,null,null,"Annual",{"$f":"AVERAGE(L67:L78)","v":{"$error":"#DIV/0!"}},{"$f":"MAX(M67:M78)","v":0},{"$f":"AVERAGE(N67:N78)","v":{"$error":"#DIV/0!"}},{"$f":"MAX(O67:O78)","v":0}]

{"sheet":"SO2","index":15,"n_rows":79,"n_cols":17,"rows_kept":79,"cut":false,"hidden":false,"merged":[[3,16,7,18],[9,16,11,18],[12,16,15,18],[66,9,78,9],[4,1,4,3],[4,4,4,6],[4,9,4,14],[6,9,18,9],[21,9,33,9],[36,9,48,9],[47,0,47,6],[48,0,51,6],[51,9,63,9],[18,4,18,6]]}
[{"$f":"+'Cover Page'!$B$29","v":"Annual Performance Report 2025"},null,null,null,{"$f":"+'Cover Page'!$B$33","v":"Issue Date:"}]
[]
["Monitoring of Sulphur dioxide emissions",null,null,"Whole Installation",null,null,"See  Notes in Cell Q3",null,null,{"$f":"+A3","v":"Monitoring of Sulphur dioxide emissions"},null,null,null,"Per Combustion Line",null,null,"Notes:"]
[null,null,null,null,null,null,null,null,null,null,null,null,null,null,null,null,"User to add logic to complete Whole installation, Table A5:G18. From the data in Per Combustion Line, Table J6:O79, subject to No. of lines installed"]
[{"$f":"+'Cover Page'!C39","v":2025},"1/2 Hourly Reference Periods",null,null,"Daily Reference Periods"]
["mg/Nm3","1/2 hourly SO2 ELV","Monthly mean of half-hourly averages","Highest half- hourly average","Daily SO2 ELV","Monthly mean of  daily averages","Highest daily average",null,null,{"$f":"+A5","v":2025},"mg/Nm3","Monthly mean of half-hourly averages","Highest half- hourly average","Monthly mean of  daily averages","Highest daily average"]
["Jan",200,16.2,956.8,30,15.9,32.6,null,null,"A1","Jan",13.9,153.6,13.6,22.6]
["Feb",200,22.2,160.69999999999999,30,21.1,29.3,null,null,null,"Feb",23.7,160.69999999999999,22,29.3]
["Mar",200,28.5,5931.7,30,28.4,143.6,null,null,null,"Mar",29.1,1757.7,30,88.2,null,"Whole Installation table A5:G18:"]
["Apr",200,26.7,386.1,30,26.7,38.700000000000003,null,null,null,"Apr",27.2,117.1,26.7,28.2,null,"Mean: for 1/2 hourly and daily periods calculate mean of values across all operational combustion lines for the month"]
["May",200,26.3,686.1,30,26.3,40.299999999999997,null,null,null,"May",26.8,686.1,26.8,40.299999999999997]
["Jun",200,18.5,158,30,18.600000000000001,29.2,null,null,null,"Jun",14.9,82,15.3,27.8]
["Jul",200,23.2,86.5,30,22.5,29.6,null,null,null,"Jul",21.2,43.4,19.5,23.8,null,"Maximum: for 1/2 hourly and daily periods use the highest value across all operational combustion lines for the month"]
["Aug",200,24.6,106.3,30,24.2,29.1,null,null,null,"Aug",22.3,63,21.9,28.2]
["Sep",200,19.7,240.1,30,19.3,28.1,null,null,null,"Sep",17.600000000000001,240.1,17.5,28]
["Oct",200,14.2,315.5,30,14,36.5,null,null,null,"Oct",14.3,199.1,14.2,24.2]
["Nov",200,21,109.8,30,20.9,32.1,null,null,null,"Nov",22,56.8,21.8,28.6]
["Dec",200,13.9,183.7,30,13.7,27.3,null,null,null,"Dec",13.7,45.7,13.5,26.5]
[null,null,null,null,null,null,null,null,null,null,"Annual",{"$f":"AVERAGE(L7:L18)","v":20.558333333333334},{"$f":"MAX(M7:M18)","v":1757.7},{"$f":"AVERAGE(N7:N18)","v":20.233333333333334},{"$f":"MAX(O7:O18)","v":88.2}]
[]
[null,null,null,null,null,null,null,null,null,{"$f":"+A5","v":2025},"mg/Nm3","Monthly mean of half-hourly averages","Highest half- hourly average","Monthly mean of  daily averages","Highest daily average"]
[null,null,null,null,null,null,null,null,null,"A2","Jan",12.5,52.6,12.6,21.6]
[null,null,null,null,null,null,null,null,null,null,"Feb",19.7,91.4,19,27]
[null,null,null,null,null,null,null,null,null,null,"Mar",26.1,199.3,25.2,29.5]
[null,null,null,null,null,null,null,null,null,null,"Apr",26.5,221.1,26.2,30]
[null,null,null,null,null,null,null,null,null,null,"May",24.8,117,24.8,29.4]
[null,null,null,null,null,null,null,null,null,null,"Jun",18,158,18.100000000000001,28.4]
[null,null,null,null,null,null,null,null,null,null,"Jul",22.6,64.3,22.5,27.4]
[null,null,null,null,null,null,null,null,null,null,"Aug",26.4,71.900000000000006,26,29.1]
[null,null,null,null,null,null,null,null,null,null,"Sep",15.7,51.5,15.6,24.8]
[null,null,null,null,null,null,null,null,null,null,"Oct",12.6,116.5,12.2,21.6]
[null,null,null,null,null,null,null,null,null,null,"Nov",16.399999999999999,63.4,16.3,27.9]
[null,null,null,null,null,null,null,null,null,null,"Dec",12.7,183.7,12.4,20.6]
[null,null,null,null,null,null,null,null,null,null,"Annual",{"$f":"AVERAGE(L22:L33)","v":19.5},{"$f":"MAX(M22:M33)","v":221.1},{"$f":"AVERAGE(N22:N33)","v":19.241666666666667},{"$f":"MAX(O22:O33)","v":30}]
[]
[null,null,null,null,null,null,null,null,null,{"$f":"+A5","v":2025},"mg/Nm3","Monthly mean of half-hourly averages","Highest half- hourly average","Monthly mean of  daily averages","Highest daily average"]
[null,null,null,null,null,null,null,null,null,"A3","Jan",22.2,956.8,21.5,32.6]
[null,null,null,null,null,null,null,null,null,null,"Feb",23.3,113.7,22.3,27.3]
[null,null,null,null,null,null,null,null,null,null,"Mar",30.4,5931.7,30,143.6]
[null,null,null,null,null,null,null,null,null,null,"Apr",27.4,386.1,27.3,38.700000000000003]
[null,null,null,null,null,null,null,null,null,null,"May",27.4,70.3,27.3,32]
[null,null,null,null,null,null,null,null,null,null,"Jun",22.8,139.30000000000001,22.6,29.2]
[null,null,null,null,null,null,null,null,null,null,"Jul",26,86.5,25.6,29.6]
[null,null,null,null,null,null,null,null,null,null,"Aug",25.3,106.3,24.9,28.1]
[null,null,null,null,null,null,null,null,null,null,"Sep",25.9,52.6,25,28.1]
[null,null,null,null,null,null,null,null,null,null,"Oct",15.8,315.5,15.6,36.5]
[null,null,null,null,null,null,null,null,null,null,"Nov",24.7,109.8,24.8,32.1]
["Comments :",null,null,null,null,null,null,null,null,null,"Dec",15.3,95.4,15.2,27.3]
[null,null,null,null,null,null,null,null,null,null,"Annual",{"$f":"AVERAGE(L37:L48)","v":23.875000000000004},{"$f":"MAX(M37:M48)","v":5931.7},{"$f":"AVERAGE(N37:N48)","v":23.508333333333329},{"$f":"MAX(O37:O48)","v":143.6}]
[]
[null,null,null,null,null,null,null,null,null,{"$f":"+A5","v":2025},"mg/Nm3","Monthly mean of half-hourly averages","Highest half- hourly average","Monthly mean of  daily averages","Highest daily average"]
[null,null,null,null,null,null,null,null,null,"A4","Jan","N/A","N/A","N/A","N/A"]
[null,null,null,null,null,null,null,null,null,null,"Feb"]
[null,null,null,null,null,null,null,null,null,null,"Mar"]
[null,null,null,null,null,null,null,null,null,null,"Apr"]
[null,null,null,null,null,null,null,null,null,null,"May"]
[null,null,null,null,null,null,null,null,null,null,"Jun"]
[null,null,null,null,null,null,null,null,null,null,"Jul"]
[null,null,null,null,null,null,null,null,null,null,"Aug"]
[null,null,null,null,null,null,null,null,null,null,"Sep"]
[null,null,null,null,null,null,null,null,null,null,"Oct"]
[null,null,null,null,null,null,null,null,null,null,"Nov"]
[null,null,null,null,null,null,null,null,null,null,"Dec"]
[null,null,null,null,null,null,null,null,null,null,"Annual",{"$f":"AVERAGE(L52:L63)","v":{"$error":"#DIV/0!"}},{"$f":"MAX(M52:M63)","v":0},{"$f":"AVERAGE(N52:N63)","v":{"$error":"#DIV/0!"}},{"$f":"MAX(O52:O63)","v":0}]
[]
[null,null,null,null,null,null,null,null,null,{"$f":"+A5","v":2025},"mg/Nm3","Monthly mean of half-hourly averages","Highest half- hourly average","Monthly mean of  daily averages","Highest daily average"]
[null,null,null,null,null,null,null,null,null,"A5","Jan","N/A","N/A","N/A","N/A"]
[null,null,null,null,null,null,null,null,null,null,"Feb"]
[null,null,null,null,null,null,null,null,null,null,"Mar"]
[null,null,null,null,null,null,null,null,null,null,"Apr"]
[null,null,null,null,null,null,null,null,null,null,"May"]
[null,null,null,null,null,null,null,null,null,null,"Jun"]
[null,null,null,null,null,null,null,null,null,null,"Jul"]
[null,null,null,null,null,null,null,null,null,null,"Aug"]
[null,null,null,null,null,null,null,null,null,null,"Sep"]
[null,null,null,null,null,null,null,null,null,null,"Oct"]
[null,null,null,null,null,null,null,null,null,null,"Nov"]
[null,null,null,null,null,null,null,null,null,null,"Dec"]
[null,null,null,null,null,null,null,null,null,null,"Annual",{"$f":"AVERAGE(L67:L78)","v":{"$error":"#DIV/0!"}},{"$f":"MAX(M67:M78)","v":0},{"$f":"AVERAGE(N67:N78)","v":{"$error":"#DIV/0!"}},{"$f":"MAX(O67:O78)","v":0}]

{"sheet":"NOx","index":16,"n_rows":79,"n_cols":17,"rows_kept":79,"cut":false,"hidden":false,"merged":[[3,16,7,18],[9,16,11,18],[12,16,15,18],[66,9,78,9],[4,1,4,3],[4,4,4,6],[4,9,4,14],[6,9,18,9],[21,9,33,9],[36,9,48,9],[47,0,47,6],[48,0,51,6],[51,9,63,9],[18,4,18,6]]}
[{"$f":"+'Cover Page'!$B$29","v":"Annual Performance Report 2025"},null,null,null,{"$f":"+'Cover Page'!$B$33","v":"Issue Date:"}]
[]
["Monitoring of Oxides of Nitrogen emissions",null,null,"Whole Installation",null,null,"See  Notes in Cell Q3",null,null,{"$f":"+A3","v":"Monitoring of Oxides of Nitrogen emissions"},null,null,null,"Per Combustion Line",null,null,"Notes:"]
[null,null,null,null,null,null,null,null,null,null,null,null,null,null,null,null,"User to add logic to complete Whole installation, Table A5:G18. From the data in Per Combustion Line, Table J6:O79, subject to No. of lines installed"]
[{"$f":"+'Cover Page'!C39","v":2025},"1/2 Hourly Reference Periods",null,null,"Daily Reference Periods"]
["mg/Nm3","1/2 hourly NOx ELV","Monthly mean of half-hourly averages","Highest half- hourly average","Daily NOx ELV","Monthly mean of  daily averages","Highest daily average",null,null,{"$f":"+A5","v":2025},"mg/Nm3","Monthly mean of half-hourly averages","Highest half- hourly average","Monthly mean of  daily averages","Highest daily average"]
["Jan",400,75.099999999999994,236.4,120,76.5,134.69999999999999,null,null,"A1","Jan",86,236.4,88.3,134.69999999999999]
["Feb",400,66.2,304,120,69.900000000000006,152.6,null,null,null,"Feb",66.900000000000006,304,73.599999999999994,152.6]
["Mar",400,69.400000000000006,267.2,120,69.599999999999994,113.4,null,null,null,"Mar",73.7,267.2,74.3,113.4,null,"Whole Installation table A5:G18:"]
["Apr",400,74.2,259.39999999999998,120,74.900000000000006,109,null,null,null,"Apr",75.400000000000006,214.8,77.2,109,null,"Mean: for 1/2 hourly and daily periods calculate mean of values across all operational combustion lines for the month"]
["May",400,76.7,265.7,120,77,106.5,null,null,null,"May",76.7,265.7,76.8,97.2]
["Jun",400,92.4,314.89999999999998,120,91.7,109.5,null,null,null,"Jun",93.4,225.3,92.1,104.7]
["Jul",400,90.3,240.7,120,90.7,157.9,null,null,null,"Jul",89,240.7,90.3,157.9,null,"Maximum: for 1/2 hourly and daily periods use the highest value across all operational combustion lines for the month"]
["Aug",400,87.6,373.3,120,88,111.8,null,null,null,"Aug",97.1,373.3,95.3,110.3]
["Sep",400,98.6,226.6,120,99.1,165.7,null,null,null,"Sep",101.8,205.9,104,165.7]
["Oct",400,96.3,317.5,120,96.6,126.8,null,null,null,"Oct",97.9,246,97.9,110.1]
["Nov",400,87.5,335.2,120,87.5,107.3,null,null,null,"Nov",89.8,335.2,89.8,104.5]
["Dec",400,91,408.4,120,91.1,128.5,null,null,null,"Dec",91.7,408.4,92.2,128.5]
[null,null,null,null,null,null,null,null,null,null,"Annual",{"$f":"AVERAGE(L7:L18)","v":86.61666666666666},{"$f":"MAX(M7:M18)","v":408.4},{"$f":"AVERAGE(N7:N18)","v":87.649999999999977},{"$f":"MAX(O7:O18)","v":165.7}]
[]
[null,null,null,null,null,null,null,null,null,{"$f":"+A5","v":2025},"mg/Nm3","Monthly mean of half-hourly averages","Highest half- hourly average","Monthly mean of  daily averages","Highest daily average"]
[null,null,null,null,null,null,null,null,null,"A2","Jan",72.8,216.6,73.900000000000006,122.8]
[null,null,null,null,null,null,null,null,null,null,"Feb",64.8,256.60000000000002,66.7,115.7]
[null,null,null,null,null,null,null,null,null,null,"Mar",74.099999999999994,199.7,74.2,99]
[null,null,null,null,null,null,null,null,null,null,"Apr",73.099999999999994,250.8,73.3,93.3]
[null,null,null,null,null,null,null,null,null,null,"May",81.400000000000006,236.5,81.599999999999994,106.5]
[null,null,null,null,null,null,null,null,null,null,"Jun",94.9,212.1,94.8,109.5]
[null,null,null,null,null,null,null,null,null,null,"Jul",94.4,192.4,94.3,105.1]
[null,null,null,null,null,null,null,null,null,null,"Aug",90.1,279.2,91.2,111.8]
[null,null,null,null,null,null,null,null,null,null,"Sep",96.4,203.5,96.4,106.1]
[null,null,null,null,null,null,null,null,null,null,"Oct",94.1,317.5,94.3,107.6]
[null,null,null,null,null,null,null,null,null,null,"Nov",82.5,186.8,82.8,107.3]
[null,null,null,null,null,null,null,null,null,null,"Dec",86.4,256.89999999999998,86.5,112.7]
[null,null,null,null,null,null,null,null,null,null,"Annual",{"$f":"AVERAGE(L22:L33)","v":83.749999999999986},{"$f":"MAX(M22:M33)","v":317.5},{"$f":"AVERAGE(N22:N33)","v":84.166666666666671},{"$f":"MAX(O22:O33)","v":122.8}]
[]
[null,null,null,null,null,null,null,null,null,{"$f":"+A5","v":2025},"mg/Nm3","Monthly mean of half-hourly averages","Highest half- hourly average","Monthly mean of  daily averages","Highest daily average"]
[null,null,null,null,null,null,null,null,null,"A3","Jan",66.599999999999994,203.6,67.5,97.7]
[null,null,null,null,null,null,null,null,null,null,"Feb",66.900000000000006,220.3,69.5,119.2]
[null,null,null,null,null,null,null,null,null,null,"Mar",60.4,263.2,60.5,96.1]
[null,null,null,null,null,null,null,null,null,null,"Apr",74.099999999999994,259.39999999999998,74.400000000000006,103.1]
[null,null,null,null,null,null,null,null,null,null,"May",72.099999999999994,221.5,72.599999999999994,100.8]
[null,null,null,null,null,null,null,null,null,null,"Jun",89.1,314.89999999999998,88.8,108.1]
[null,null,null,null,null,null,null,null,null,null,"Jul",87.6,203.3,87.7,105.9]
[null,null,null,null,null,null,null,null,null,null,"Aug",75.7,224.5,77.599999999999994,105.6]
[null,null,null,null,null,null,null,null,null,null,"Sep",97.7,226.6,97,109.6]
[null,null,null,null,null,null,null,null,null,null,"Oct",96.9,309.7,97.7,126.8]
[null,null,null,null,null,null,null,null,null,null,"Nov",90.2,307.7,90,102.7]
["Comments :",null,null,null,null,null,null,null,null,null,"Dec",95,201.8,94.8,110]
[null,null,null,null,null,null,null,null,null,null,"Annual",{"$f":"AVERAGE(L37:L48)","v":81.02500000000002},{"$f":"MAX(M37:M48)","v":314.89999999999998},{"$f":"AVERAGE(N37:N48)","v":81.50833333333334},{"$f":"MAX(O37:O48)","v":126.8}]
[]
[null,null,null,null,null,null,null,null,null,{"$f":"+A5","v":2025},"mg/Nm3","Monthly mean of half-hourly averages","Highest half- hourly average","Monthly mean of  daily averages","Highest daily average"]
[null,null,null,null,null,null,null,null,null,"A4","Jan","N/A","N/A","N/A","N/A"]
[null,null,null,null,null,null,null,null,null,null,"Feb"]
[null,null,null,null,null,null,null,null,null,null,"Mar"]
[null,null,null,null,null,null,null,null,null,null,"Apr"]
[null,null,null,null,null,null,null,null,null,null,"May"]
[null,null,null,null,null,null,null,null,null,null,"Jun"]
[null,null,null,null,null,null,null,null,null,null,"Jul"]
[null,null,null,null,null,null,null,null,null,null,"Aug"]
[null,null,null,null,null,null,null,null,null,null,"Sep"]
[null,null,null,null,null,null,null,null,null,null,"Oct"]
[null,null,null,null,null,null,null,null,null,null,"Nov"]
[null,null,null,null,null,null,null,null,null,null,"Dec"]
[null,null,null,null,null,null,null,null,null,null,"Annual",{"$f":"AVERAGE(L52:L63)","v":{"$error":"#DIV/0!"}},{"$f":"MAX(M52:M63)","v":0},{"$f":"AVERAGE(N52:N63)","v":{"$error":"#DIV/0!"}},{"$f":"MAX(O52:O63)","v":0}]
[]
[null,null,null,null,null,null,null,null,null,{"$f":"+A5","v":2025},"mg/Nm3","Monthly mean of half-hourly averages","Highest half- hourly average","Monthly mean of  daily averages","Highest daily average"]
[null,null,null,null,null,null,null,null,null,"A5","Jan","N/A","N/A","N/A","N/A"]
[null,null,null,null,null,null,null,null,null,null,"Feb"]
[null,null,null,null,null,null,null,null,null,null,"Mar"]
[null,null,null,null,null,null,null,null,null,null,"Apr"]
[null,null,null,null,null,null,null,null,null,null,"May"]
[null,null,null,null,null,null,null,null,null,null,"Jun"]
[null,null,null,null,null,null,null,null,null,null,"Jul"]
[null,null,null,null,null,null,null,null,null,null,"Aug"]
[null,null,null,null,null,null,null,null,null,null,"Sep"]
[null,null,null,null,null,null,null,null,null,null,"Oct"]
[null,null,null,null,null,null,null,null,null,null,"Nov"]
[null,null,null,null,null,null,null,null,null,null,"Dec"]
[null,null,null,null,null,null,null,null,null,null,"Annual",{"$f":"AVERAGE(L67:L78)","v":{"$error":"#DIV/0!"}},{"$f":"MAX(M67:M78)","v":0},{"$f":"AVERAGE(N67:N78)","v":{"$error":"#DIV/0!"}},{"$f":"MAX(O67:O78)","v":0}]

{"sheet":"TOC","index":17,"n_rows":79,"n_cols":17,"rows_kept":79,"cut":false,"hidden":false,"merged":[[3,16,7,18],[9,16,11,18],[12,16,15,18],[66,9,78,9],[4,1,4,3],[4,4,4,6],[4,9,4,14],[6,9,18,9],[21,9,33,9],[36,9,48,9],[47,0,47,6],[48,0,51,6],[51,9,63,9]]}
[{"$f":"+'Cover Page'!$B$29","v":"Annual Performance Report 2025"},null,null,null,{"$f":"+'Cover Page'!$B$33","v":"Issue Date:"}]
[]
["Monitoring of Total organic carbon emissions",null,null,"Whole Installation",null,null,"See  Notes in Cell Q3",null,null,{"$f":"+A3","v":"Monitoring of Total organic carbon emissions"},null,null,null,"Per Combustion Line",null,null,"Notes:"]
[null,null,null,null,null,null,null,null,null,null,null,null,null,null,null,null,"User to add logic to complete Whole installation, Table A5:G18. From the data in Per Combustion Line, Table J6:O79, subject to No. of lines installed"]
[{"$f":"+'Cover Page'!C39","v":2025},"1/2 Hourly Reference Periods",null,null,"Daily Reference Periods"]
["mg/Nm3","1/2 hourly TOC ELV","Monthly mean of half-hourly averages","Highest half- hourly average","Daily TOC ELV","Monthly mean of  daily averages","Highest daily average",null,null,{"$f":"+A5","v":2025},"mg/Nm3","Monthly mean of half-hourly averages","Highest half- hourly average","Monthly mean of  daily averages","Highest daily average"]
["Jan",20,0.2,4,10,0.2,1.4,null,null,"A1","Jan",0.1,4,0.1,0.6]
["Feb",20,0.2,7,10,0.3,3.3,null,null,null,"Feb",0.2,7,0.3,3.3]
["Mar",20,0.3,31.9,10,0.3,1.4,null,null,null,"Mar",0.2,31.9,0.2,0.8,null,"Whole Installation table A5:G18:"]
["Apr",20,0.4,7.2,10,0.3,1.7,null,null,null,"Apr",0.3,7.1,0.2,1.3,null,"Mean: for 1/2 hourly and daily periods calculate mean of values across all operational combustion lines for the month"]
["May",20,0.2,4.5,10,0.2,1,null,null,null,"May",0.1,0.5,0.1,0.3]
["Jun",20,0.2,7,10,0.2,0.9,null,null,null,"Jun",0.1,7,0.1,0.9]
["Jul",20,0.3,3.4,10,0.3,1.1000000000000001,null,null,null,"Jul",0.2,3.1,0.2,0.8,null,"Maximum: for 1/2 hourly and daily periods use the highest value across all operational combustion lines for the month"]
["Aug",20,0.3,3.5,10,0.3,1.9,null,null,null,"Aug",0.2,3.5,0.2,0.7]
["Sep",20,0.3,7.8,10,0.3,1.4,null,null,null,"Sep",0.3,7.8,0.3,1.4]
["Oct",20,0.2,9.6999999999999993,10,0.2,1.3,null,null,null,"Oct",0.1,1,0,0.2]
["Nov",20,0.1,6.1,10,0.1,0.7,null,null,null,"Nov",0.1,4.8,0,0.7]
["Dec",20,0.1,58.7,10,0.2,8.1999999999999993,null,null,null,"Dec",0.1,58.7,0.3,8.1999999999999993]
[null,null,null,null,null,null,null,null,null,null,"Annual",{"$f":"AVERAGE(L7:L18)","v":0.16666666666666666},{"$f":"MAX(M7:M18)","v":58.7},{"$f":"AVERAGE(N7:N18)","v":0.16666666666666666},{"$f":"MAX(O7:O18)","v":8.1999999999999993}]
[]
[null,null,null,null,null,null,null,null,null,{"$f":"+A5","v":2025},"mg/Nm3","Monthly mean of half-hourly averages","Highest half- hourly average","Monthly mean of  daily averages","Highest daily average"]
[null,null,null,null,null,null,null,null,null,"A2","Jan",0.4,3.6,0.4,1.4]
[null,null,null,null,null,null,null,null,null,null,"Feb",0.4,5,0.4,1.2]
[null,null,null,null,null,null,null,null,null,null,"Mar",0.5,5.4,0.5,1.4]
[null,null,null,null,null,null,null,null,null,null,"Apr",0.5,6.2,0.5,1.6]
[null,null,null,null,null,null,null,null,null,null,"May",0.3,4.4000000000000004,0.3,0.9]
[null,null,null,null,null,null,null,null,null,null,"Jun",0.3,3,0.3,0.6]
[null,null,null,null,null,null,null,null,null,null,"Jul",0.4,3.4,0.4,1.1000000000000001]
[null,null,null,null,null,null,null,null,null,null,"Aug",0.3,2.7,0.4,1.9]
[null,null,null,null,null,null,null,null,null,null,"Sep",0.3,5.4,0.3,1]
[null,null,null,null,null,null,null,null,null,null,"Oct",0.3,9.6999999999999993,0.3,1]
[null,null,null,null,null,null,null,null,null,null,"Nov",0.2,5.8,0.2,0.6]
[null,null,null,null,null,null,null,null,null,null,"Dec",0.3,8.1999999999999993,0.2,0.8]
[null,null,null,null,null,null,null,null,null,null,"Annual",{"$f":"AVERAGE(L22:L33)","v":0.34999999999999992},{"$f":"MAX(M22:M33)","v":9.6999999999999993},{"$f":"AVERAGE(N22:N33)","v":0.34999999999999992},{"$f":"MAX(O22:O33)","v":1.9}]
[]
[null,null,null,null,null,null,null,null,null,{"$f":"+A5","v":2025},"mg/Nm3","Monthly mean of half-hourly averages","Highest half- hourly average","Monthly mean of  daily averages","Highest daily average"]
[null,null,null,null,null,null,null,null,null,"A3","Jan",0.2,2.4,0.1,0.5]
[null,null,null,null,null,null,null,null,null,null,"Feb",0.2,6.2,0.2,0.8]
[null,null,null,null,null,null,null,null,null,null,"Mar",0.3,3.8,0.2,0.8]
[null,null,null,null,null,null,null,null,null,null,"Apr",0.4,7.2,0.4,1.7]
[null,null,null,null,null,null,null,null,null,null,"May",0.3,4.5,0.3,1]
[null,null,null,null,null,null,null,null,null,null,"Jun",0.2,1.3,0.2,0.4]
[null,null,null,null,null,null,null,null,null,null,"Jul",0.4,3.4,0.4,1.1000000000000001]
[null,null,null,null,null,null,null,null,null,null,"Aug",0.5,1.2,0.4,0.6]
[null,null,null,null,null,null,null,null,null,null,"Sep",0.4,1.4,0.3,0.6]
[null,null,null,null,null,null,null,null,null,null,"Oct",0.3,8,0.3,1.3]
[null,null,null,null,null,null,null,null,null,null,"Nov",0.2,6.1,0.2,0.7]
["Comments :",null,null,null,null,null,null,null,null,null,"Dec",0.1,14.2,0.1,1.1000000000000001]
[null,null,null,null,null,null,null,null,null,null,"Annual",{"$f":"AVERAGE(L37:L48)","v":0.29166666666666669},{"$f":"MAX(M37:M48)","v":14.2},{"$f":"AVERAGE(N37:N48)","v":0.2583333333333333},{"$f":"MAX(O37:O48)","v":1.7}]
[]
[null,null,null,null,null,null,null,null,null,{"$f":"+A5","v":2025},"mg/Nm3","Monthly mean of half-hourly averages","Highest half- hourly average","Monthly mean of  daily averages","Highest daily average"]
[null,null,null,null,null,null,null,null,null,"A4","Jan","N/A","N/A","N/A","N/A"]
[null,null,null,null,null,null,null,null,null,null,"Feb"]
[null,null,null,null,null,null,null,null,null,null,"Mar"]
[null,null,null,null,null,null,null,null,null,null,"Apr"]
[null,null,null,null,null,null,null,null,null,null,"May"]
[null,null,null,null,null,null,null,null,null,null,"Jun"]
[null,null,null,null,null,null,null,null,null,null,"Jul"]
[null,null,null,null,null,null,null,null,null,null,"Aug"]
[null,null,null,null,null,null,null,null,null,null,"Sep"]
[null,null,null,null,null,null,null,null,null,null,"Oct"]
[null,null,null,null,null,null,null,null,null,null,"Nov"]
[null,null,null,null,null,null,null,null,null,null,"Dec"]
[null,null,null,null,null,null,null,null,null,null,"Annual",{"$f":"AVERAGE(L52:L63)","v":{"$error":"#DIV/0!"}},{"$f":"MAX(M52:M63)","v":0},{"$f":"AVERAGE(N52:N63)","v":{"$error":"#DIV/0!"}},{"$f":"MAX(O52:O63)","v":0}]
[]
[null,null,null,null,null,null,null,null,null,{"$f":"+A5","v":2025},"mg/Nm3","Monthly mean of half-hourly averages","Highest half- hourly average","Monthly mean of  daily averages","Highest daily average"]
[null,null,null,null,null,null,null,null,null,"A5","Jan","N/A","N/A","N/A","N/A"]
[null,null,null,null,null,null,null,null,null,null,"Feb"]
[null,null,null,null,null,null,null,null,null,null,"Mar"]
[null,null,null,null,null,null,null,null,null,null,"Apr"]
[null,null,null,null,null,null,null,null,null,null,"May"]
[null,null,null,null,null,null,null,null,null,null,"Jun"]
[null,null,null,null,null,null,null,null,null,null,"Jul"]
[null,null,null,null,null,null,null,null,null,null,"Aug"]
[null,null,null,null,null,null,null,null,null,null,"Sep"]
[null,null,null,null,null,null,null,null,null,null,"Oct"]
[null,null,null,null,null,null,null,null,null,null,"Nov"]
[null,null,null,null,null,null,null,null,null,null,"Dec"]
[null,null,null,null,null,null,null,null,null,null,"Annual",{"$f":"AVERAGE(L67:L78)","v":{"$error":"#DIV/0!"}},{"$f":"MAX(M67:M78)","v":0},{"$f":"AVERAGE(N67:N78)","v":{"$error":"#DIV/0!"}},{"$f":"MAX(O67:O78)","v":0}]

{"sheet":"Particulates","index":18,"n_rows":79,"n_cols":17,"rows_kept":79,"cut":false,"hidden":false,"merged":[[4,16,8,18],[10,16,12,18],[13,16,16,18],[66,9,78,9],[4,1,4,3],[4,4,4,6],[4,9,4,14],[6,9,18,9],[21,9,33,9],[36,9,48,9],[47,0,47,6],[48,0,51,6],[51,9,63,9],[18,4,18,6]]}
[{"$f":"+'Cover Page'!$B$29","v":"Annual Performance Report 2025"},null,null,null,{"$f":"+'Cover Page'!$B$33","v":"Issue Date:"}]
[]
["Monitoring of Particulate matter emissions",null,null,"Whole Installation",null,null,"See  Notes in Cell Q3",null,null,{"$f":"+A3","v":"Monitoring of Particulate matter emissions"},null,null,null,"Per Combustion Line",null,null,"Notes:"]
[]
[{"$f":"+'Cover Page'!C39","v":2025},"1/2 Hourly Reference Periods",null,null,"Daily Reference Periods",null,null,null,null,null,null,null,null,null,null,null,"User to add logic to complete Whole installation, Table A5:G18. From the data in Per Combustion Line, Table J6:O79, subject to No. of lines installed"]
["mg/Nm3","1/2 hourly PM ELV","Monthly mean of half-hourly averages","Highest half- hourly average","Daily PM ELV","Monthly mean of  daily averages","Highest daily average",null,null,{"$f":"+A5","v":2025},"mg/Nm3","Monthly mean of half-hourly averages","Highest half- hourly average","Monthly mean of  daily averages","Highest daily average"]
["Jan",30,0.1,2.6,5,0,0.4,null,null,"A1","Jan",0.1,2.6,0,0.4]
["Feb",30,0.1,44.5,5,0.5,24.6,null,null,null,"Feb",0.2,44.5,1.3,24.6]
["Mar",30,0.1,2.7,5,0.1,0.5,null,null,null,"Mar",0.1,2.7,0.1,0.4]
["Apr",30,0.1,3,5,0.1,0.6,null,null,null,"Apr",0.1,0.6,0,0.2,null,"Whole Installation table A5:G18:"]
["May",30,0.1,1.8,5,0.1,0.4,null,null,null,"May",0,0.1,0,0.1,null,"Mean: for 1/2 hourly and daily periods calculate mean of values across all operational combustion lines for the month"]
["Jun",30,0.3,3.3,5,0.2,1.5,null,null,null,"Jun",0.6,3.3,0.6,1.5]
["Jul",30,0.3,1.7,5,0.2,1.4,null,null,null,"Jul",0.5,1.7,0.5,1.4]
["Aug",30,0.2,7.5,5,0.2,3,null,null,null,"Aug",0.3,6.3,0.3,2,null,"Maximum: for 1/2 hourly and daily periods use the highest value across all operational combustion lines for the month"]
["Sep",30,0.2,1.5,5,0.1,0.4,null,null,null,"Sep",0.2,1.5,0.1,0.3]
["Oct",30,0.2,5.8,5,0.2,1.4,null,null,null,"Oct",0.2,1.9,0.2,0.6]
["Nov",30,0.4,3,5,0.4,0.9,null,null,null,"Nov",0.6,3,0.6,0.8]
["Dec",30,0.6,2.1,5,0.8,0.9,null,null,null,"Dec",0.7,2.1,0.7,0.9]
[null,null,null,null,null,null,null,null,null,null,"Annual",{"$f":"AVERAGE(L7:L18)","v":0.30000000000000004},{"$f":"MAX(M7:M18)","v":44.5},{"$f":"AVERAGE(N7:N18)","v":0.3666666666666667},{"$f":"MAX(O7:O18)","v":24.6}]
[]
[null,null,null,null,null,null,null,null,null,{"$f":"+A5","v":2025},"mg/Nm3","Monthly mean of half-hourly averages","Highest half- hourly average","Monthly mean of  daily averages","Highest daily average"]
[null,null,null,null,null,null,null,null,null,"A2","Jan",0.2,1.1000000000000001,0.1,0.4]
[null,null,null,null,null,null,null,null,null,null,"Feb",0.2,2,0.2,0.4]
[null,null,null,null,null,null,null,null,null,null,"Mar",0.3,1,0.3,0.5]
[null,null,null,null,null,null,null,null,null,null,"Apr",0.3,3,0.3,0.6]
[null,null,null,null,null,null,null,null,null,null,"May",0.3,1.8,0.3,0.4]
[null,null,null,null,null,null,null,null,null,null,"Jun",0.2,1.1000000000000001,0.2,0.3]
[null,null,null,null,null,null,null,null,null,null,"Jul",0.3,0.8,0.2,0.4]
[null,null,null,null,null,null,null,null,null,null,"Aug",0.3,7.5,0.4,3]
[null,null,null,null,null,null,null,null,null,null,"Sep",0.3,1.2,0.3,0.4]
[null,null,null,null,null,null,null,null,null,null,"Oct",0.4,5.8,0.4,1.4]
[null,null,null,null,null,null,null,null,null,null,"Nov",0.3,1,0.3,0.4]
[null,null,null,null,null,null,null,null,null,null,"Dec",0.5,1.7,0.4,0.8]
[null,null,null,null,null,null,null,null,null,null,"Annual",{"$f":"AVERAGE(L22:L33)","v":0.3},{"$f":"MAX(M22:M33)","v":7.5},{"$f":"AVERAGE(N22:N33)","v":0.28333333333333327},{"$f":"MAX(O22:O33)","v":3}]
[]
[null,null,null,null,null,null,null,null,null,{"$f":"+A5","v":2025},"mg/Nm3","Monthly mean of half-hourly averages","Highest half- hourly average","Monthly mean of  daily averages","Highest daily average"]
[null,null,null,null,null,null,null,null,null,"A3","Jan",0.1,0.7,0,0.2]
[null,null,null,null,null,null,null,null,null,null,"Feb",0.1,0.5,0,0.1]
[null,null,null,null,null,null,null,null,null,null,"Mar",0.1,1.1000000000000001,0,0.2]
[null,null,null,null,null,null,null,null,null,null,"Apr",0.1,1.1000000000000001,0.1,0.3]
[null,null,null,null,null,null,null,null,null,null,"May",0.1,0.8,0.1,0.2]
[null,null,null,null,null,null,null,null,null,null,"Jun",0.1,0.3,0,0.1]
[null,null,null,null,null,null,null,null,null,null,"Jul",0.1,0.9,0.1,0.2]
[null,null,null,null,null,null,null,null,null,null,"Aug",0.1,0.3,0,0.1]
[null,null,null,null,null,null,null,null,null,null,"Sep",0.1,0.7,0,0.2]
[null,null,null,null,null,null,null,null,null,null,"Oct",0.2,1,0.2,0.5]
[null,null,null,null,null,null,null,null,null,null,"Nov",0.5,1.6,0.5,0.9]
["Comments :",null,null,null,null,null,null,null,null,null,"Dec",0.6,2.1,0.5,0.8]
[null,null,null,null,null,null,null,null,null,null,"Annual",{"$f":"AVERAGE(L37:L48)","v":0.18333333333333332},{"$f":"MAX(M37:M48)","v":2.1},{"$f":"AVERAGE(N37:N48)","v":0.125},{"$f":"MAX(O37:O48)","v":0.9}]
[]
[null,null,null,null,null,null,null,null,null,{"$f":"+A5","v":2025},"mg/Nm3","Monthly mean of half-hourly averages","Highest half- hourly average","Monthly mean of  daily averages","Highest daily average"]
[null,null,null,null,null,null,null,null,null,"A4","Jan","N/A","N/A","N/A","N/A"]
[null,null,null,null,null,null,null,null,null,null,"Feb"]
[null,null,null,null,null,null,null,null,null,null,"Mar"]
[null,null,null,null,null,null,null,null,null,null,"Apr"]
[null,null,null,null,null,null,null,null,null,null,"May"]
[null,null,null,null,null,null,null,null,null,null,"Jun"]
[null,null,null,null,null,null,null,null,null,null,"Jul"]
[null,null,null,null,null,null,null,null,null,null,"Aug"]
[null,null,null,null,null,null,null,null,null,null,"Sep"]
[null,null,null,null,null,null,null,null,null,null,"Oct"]
[null,null,null,null,null,null,null,null,null,null,"Nov"]
[null,null,null,null,null,null,null,null,null,null,"Dec"]
[null,null,null,null,null,null,null,null,null,null,"Annual",{"$f":"AVERAGE(L52:L63)","v":{"$error":"#DIV/0!"}},{"$f":"MAX(M52:M63)","v":0},{"$f":"AVERAGE(N52:N63)","v":{"$error":"#DIV/0!"}},{"$f":"MAX(O52:O63)","v":0}]
[]
[null,null,null,null,null,null,null,null,null,{"$f":"+A5","v":2025},"mg/Nm3","Monthly mean of half-hourly averages","Highest half- hourly average","Monthly mean of  daily averages","Highest daily average"]
[null,null,null,null,null,null,null,null,null,"A5","Jan","N/A","N/A","N/A","N/A"]
[null,null,null,null,null,null,null,null,null,null,"Feb"]
[null,null,null,null,null,null,null,null,null,null,"Mar"]
[null,null,null,null,null,null,null,null,null,null,"Apr"]
[null,null,null,null,null,null,null,null,null,null,"May"]
[null,null,null,null,null,null,null,null,null,null,"Jun"]
[null,null,null,null,null,null,null,null,null,null,"Jul"]
[null,null,null,null,null,null,null,null,null,null,"Aug"]
[null,null,null,null,null,null,null,null,null,null,"Sep"]
[null,null,null,null,null,null,null,null,null,null,"Oct"]
[null,null,null,null,null,null,null,null,null,null,"Nov"]
[null,null,null,null,null,null,null,null,null,null,"Dec"]
[null,null,null,null,null,null,null,null,null,null,"Annual",{"$f":"AVERAGE(L67:L78)","v":{"$error":"#DIV/0!"}},{"$f":"MAX(M67:M78)","v":0},{"$f":"AVERAGE(N67:N78)","v":{"$error":"#DIV/0!"}},{"$f":"MAX(O67:O78)","v":0}]

{"sheet":"CO 0.5 hourly","index":19,"n_rows":82,"n_cols":17,"rows_kept":82,"cut":false,"hidden":false,"merged":[[4,0,5,6],[6,16,10,18],[12,16,14,18],[15,16,18,18],[69,9,81,9],[7,1,7,3],[7,4,7,6],[7,9,7,14],[9,9,21,9],[24,9,36,9],[39,9,51,9],[50,0,50,6],[51,0,54,6],[54,9,66,9]]}
[{"$f":"+'Cover Page'!$B$29","v":"Annual Performance Report 2025"},null,null,null,{"$f":"+'Cover Page'!$B$33","v":"Issue Date:"}]
[]
["Monitoring of Carbon Monoxide (half hourly)",null,null,"Whole Installation",null,null,"See  Notes in Cell Q3",null,null,{"$f":"+A3","v":"Monitoring of Carbon Monoxide (half hourly)"},null,null,null,"Per Combustion Line",null,null,"Notes:"]
[]
["Please complete this tab for your plant if you have 1/2 hourly CO ELVs; otherwise, leave it blank and complete the CO 95% 10 min tab"]
[]
[null,null,null,null,null,null,null,null,null,null,null,null,null,null,null,null,"User to add logic to complete Whole installation, Table A5:G18. From the data in Per Combustion Line, Table J6:O79, subject to No. of lines installed"]
[{"$f":"+'Cover Page'!C39","v":2025},"1/2 Hourly Reference Periods",null,null,"Daily Reference Periods"]
["mg/Nm3","1/2 hourly CO ELV","Monthly mean of half-hourly averages","Highest half- hourly average","Daily CO ELV","Monthly mean of  daily averages","Highest daily average",null,null,{"$f":"+A8","v":2025},"mg/Nm3","Monthly mean of half-hourly averages","Highest half- hourly average","Monthly mean of  daily averages","Highest daily average"]
["Jan",100,0.9,66.7,50,1,6.2,null,null,"A1","Jan",0.5,66.7,0.6,6.2]
["Feb",{"$f":"+B10","v":100},1,32.4,{"$f":"+E10","v":50},1.2,12.6,null,null,null,"Feb",0.6,32.4,1.2,12.6]
["Mar",{"$f":"+B11","v":100},1.1000000000000001,74.2,{"$f":"+E11","v":50},1,4.0999999999999996,null,null,null,"Mar",0.7,73.900000000000006,0.7,3.6,null,"Whole Installation table A5:G18:"]
["Apr",100,1.2,92.9,50,1.2,6,null,null,null,"Apr",0.8,37.6,0.8,4.7,null,"Mean: for 1/2 hourly and daily periods calculate mean of values across all operational combustion lines for the month"]
["May",100,0.9,21.6,50,0.9,3.9,null,null,null,"May",0.5,10.8,0.5,0.8]
["Jun",100,0.9,104.4,50,0.9,3.8,null,null,null,"Jun",0.5,14.5,0.5,1.2]
["Jul",100,1.1000000000000001,45,50,1.1000000000000001,4,null,null,null,"Jul",0.8,45,0.9,4,null,"Maximum: for 1/2 hourly and daily periods use the highest value across all operational combustion lines for the month"]
["Aug",100,1,62.6,50,0.9,7,null,null,null,"Aug",0.7,62.6,0.7,6.7]
["Sep",100,0.9,67.2,50,0.9,7,null,null,null,"Sep",0.7,64.5,0.7,6.7]
["Oct",100,0.9,91.5,50,0.9,6.9,null,null,null,"Oct",0.4,3.8,0.4,0.6]
["Nov",100,1,57.6,50,1,6.5,null,null,null,"Nov",0.6,49.9,0.5,4.4000000000000004]
["Dec",100,1,58.4,50,1,6.4,null,null,null,"Dec",0.6,47.6,0.6,5.0999999999999996]
[null,null,null,null,null,null,null,null,null,null,"Annual",{"$f":"AVERAGE(L10:L21)","v":0.6166666666666667},{"$f":"MAX(M10:M21)","v":73.900000000000006},{"$f":"AVERAGE(N10:N21)","v":0.67500000000000016},{"$f":"MAX(O10:O21)","v":12.6}]
[]
[null,null,null,null,null,null,null,null,null,{"$f":"+A8","v":2025},"mg/Nm3","Monthly mean of half-hourly averages","Highest half- hourly average","Monthly mean of  daily averages","Highest daily average"]
[null,null,null,null,null,null,null,null,null,"A2","Jan",2.1,62.5,2.2000000000000002,6]
[null,null,null,null,null,null,null,null,null,null,"Feb",2.2000000000000002,14.5,2.2000000000000002,3.5]
[null,null,null,null,null,null,null,null,null,null,"Mar",2.2000000000000002,74.2,2.1,4.0999999999999996]
[null,null,null,null,null,null,null,null,null,null,"Apr",2.2999999999999998,92.9,2.2999999999999998,6]
[null,null,null,null,null,null,null,null,null,null,"May",1.9,21.6,1.8,3.9]
[null,null,null,null,null,null,null,null,null,null,"Jun",2,47.7,1.9,3.8]
[null,null,null,null,null,null,null,null,null,null,"Jul",2,13,2,3.8]
[null,null,null,null,null,null,null,null,null,null,"Aug",1.8,50.4,1.8,7]
[null,null,null,null,null,null,null,null,null,null,"Sep",1.9,67.2,1.8,7]
[null,null,null,null,null,null,null,null,null,null,"Oct",2.1,91.5,2.1,6.9]
[null,null,null,null,null,null,null,null,null,null,"Nov",2,46.7,2,6.5]
[null,null,null,null,null,null,null,null,null,null,"Dec",2.1,56.1,2.1,6.4]
[null,null,null,null,null,null,null,null,null,null,"Annual",{"$f":"AVERAGE(L25:L36)","v":2.0500000000000003},{"$f":"MAX(M25:M36)","v":92.9},{"$f":"AVERAGE(N25:N36)","v":2.0250000000000004},{"$f":"MAX(O25:O36)","v":7}]
[]
[null,null,null,null,null,null,null,null,null,{"$f":"+A8","v":2025},"mg/Nm3","Monthly mean of half-hourly averages","Highest half- hourly average","Monthly mean of  daily averages","Highest daily average"]
[null,null,null,null,null,null,null,null,null,"A3","Jan",0.3,16.3,0.2,0.7]
[null,null,null,null,null,null,null,null,null,null,"Feb",0.3,17,0.3,2.4]
[null,null,null,null,null,null,null,null,null,null,"Mar",0.4,11.4,0.4,1.7]
[null,null,null,null,null,null,null,null,null,null,"Apr",0.7,22.4,0.7,3.6]
[null,null,null,null,null,null,null,null,null,null,"May",0.5,20.100000000000001,0.5,2.8]
[null,null,null,null,null,null,null,null,null,null,"Jun",0.4,104.4,0.4,3.5]
[null,null,null,null,null,null,null,null,null,null,"Jul",0.5,12.1,0.5,3.8]
[null,null,null,null,null,null,null,null,null,null,"Aug",0.5,34.200000000000003,0.4,1]
[null,null,null,null,null,null,null,null,null,null,"Sep",0.3,24.2,0.3,1.5]
[null,null,null,null,null,null,null,null,null,null,"Oct",0.4,56.2,0.3,3.7]
[null,null,null,null,null,null,null,null,null,null,"Nov",0.5,57.6,0.5,5.7]
["Comments :",null,null,null,null,null,null,null,null,null,"Dec",0.5,58.4,0.4,6.4]
[null,null,null,null,null,null,null,null,null,null,"Annual",{"$f":"AVERAGE(L40:L51)","v":0.44166666666666665},{"$f":"MAX(M40:M51)","v":104.4},{"$f":"AVERAGE(N40:N51)","v":0.40833333333333338},{"$f":"MAX(O40:O51)","v":6.4}]
[]
[null,null,null,null,null,null,null,null,null,{"$f":"+A8","v":2025},"mg/Nm3","Monthly mean of half-hourly averages","Highest half- hourly average","Monthly mean of  daily averages","Highest daily average"]
[null,null,null,null,null,null,null,null,null,"A4","Jan","N/A","N/A","N/A","N/A"]
[null,null,null,null,null,null,null,null,null,null,"Feb"]
[null,null,null,null,null,null,null,null,null,null,"Mar"]
[null,null,null,null,null,null,null,null,null,null,"Apr"]
[null,null,null,null,null,null,null,null,null,null,"May"]
[null,null,null,null,null,null,null,null,null,null,"Jun"]
[null,null,null,null,null,null,null,null,null,null,"Jul"]
[null,null,null,null,null,null,null,null,null,null,"Aug"]
[null,null,null,null,null,null,null,null,null,null,"Sep"]
[null,null,null,null,null,null,null,null,null,null,"Oct"]
[null,null,null,null,null,null,null,null,null,null,"Nov"]
[null,null,null,null,null,null,null,null,null,null,"Dec"]
[null,null,null,null,null,null,null,null,null,null,"Annual",{"$f":"AVERAGE(L55:L66)","v":{"$error":"#DIV/0!"}},{"$f":"MAX(M55:M66)","v":0},{"$f":"AVERAGE(N55:N66)","v":{"$error":"#DIV/0!"}},{"$f":"MAX(O55:O66)","v":0}]
[]
[null,null,null,null,null,null,null,null,null,{"$f":"+A8","v":2025},"mg/Nm3","Monthly mean of half-hourly averages","Highest half- hourly average","Monthly mean of  daily averages","Highest daily average"]
[null,null,null,null,null,null,null,null,null,"A5","Jan","N/A","N/A","N/A","N/A"]
[null,null,null,null,null,null,null,null,null,null,"Feb"]
[null,null,null,null,null,null,null,null,null,null,"Mar"]
[null,null,null,null,null,null,null,null,null,null,"Apr"]
[null,null,null,null,null,null,null,null,null,null,"May"]
[null,null,null,null,null,null,null,null,null,null,"Jun"]
[null,null,null,null,null,null,null,null,null,null,"Jul"]
[null,null,null,null,null,null,null,null,null,null,"Aug"]
[null,null,null,null,null,null,null,null,null,null,"Sep"]
[null,null,null,null,null,null,null,null,null,null,"Oct"]
[null,null,null,null,null,null,null,null,null,null,"Nov"]
[null,null,null,null,null,null,null,null,null,null,"Dec"]
[null,null,null,null,null,null,null,null,null,null,"Annual",{"$f":"AVERAGE(L70:L81)","v":{"$error":"#DIV/0!"}},{"$f":"MAX(M70:M81)","v":0},{"$f":"AVERAGE(N70:N81)","v":{"$error":"#DIV/0!"}},{"$f":"MAX(O70:O81)","v":0}]

{"sheet":"CO 95% 10 min","index":20,"n_rows":82,"n_cols":19,"rows_kept":82,"cut":false,"hidden":false,"merged":[[4,0,5,7],[6,18,10,20],[12,18,14,20],[15,18,18,20],[69,10,81,10],[7,1,7,4],[7,5,7,7],[7,10,7,16],[9,10,21,10],[24,10,36,10],[39,10,51,10],[50,0,50,7],[51,0,54,7],[54,10,66,10]]}
[{"$f":"+'Cover Page'!$B$29","v":"Annual Performance Report 2025"},null,null,null,{"$f":"+'Cover Page'!$B$33","v":"Issue Date:"}]
[]
["Monitoring of Carbon Monoxide (10-minute avg)",null,null,null,"Whole Installation",null,null,"See  Notes in Cell S3",null,{"$f":"+A3","v":"Monitoring of Carbon Monoxide (10-minute avg)"},null,null,null,null,"Per Combustion Line",null,"Notes:",null,"Notes:"]
[]
["Please complete this tab for your plant if you have 10-minute average CO ELVs; otherwise, leave it blank and complete the CO 0.5 hourly tab"]
[]
[null,null,null,null,null,null,null,null,null,null,null,null,null,null,null,null,null,null,"User to add logic to complete Whole installation, Table A5:H18. From the data in Per Combustion Line, Table K6:Q79, subject to No. of lines installed"]
[{"$f":"+'Cover Page'!C39","v":2025},"10-minute Reference Periods",null,null,null,"Daily Reference Periods"]
["mg/Nm3","95%ile 10-min avg CO ELV","Highest daily 95%ile 10-min average","Monthly mean of 10-min averages","Highest 10-min average","Daily CO ELV","Monthly mean of  daily averages","Highest daily average",null,null,{"$f":"+A8","v":2025},"mg/Nm3","Highest daily 95%ile 10-min average","Monthly mean of 10-min averages","Highest 10-min average","Monthly mean of  daily averages","Highest daily average"]
["Jan",150,null,null,null,50,null,null,null,null,"A1","Jan","N/A","N/A","N/A","N/A","N/A"]
["Feb",{"$f":"+B10","v":150},null,null,null,{"$f":"+F10","v":50},null,null,null,null,null,"Feb","N/A","N/A","N/A","N/A","N/A"]
["Mar",{"$f":"+B11","v":150},null,null,null,{"$f":"+F11","v":50},null,null,null,null,null,"Mar","N/A","N/A","N/A","N/A","N/A",null,"Whole Installation table A5:H18:"]
["Apr",150,null,null,null,50,null,null,null,null,null,"Apr","N/A","N/A","N/A","N/A","N/A",null,"Mean: for 10-min and daily periods use average of all operational combustion lines."]
["May",150,null,null,null,50,null,null,null,null,null,"May","N/A","N/A","N/A","N/A","N/A"]
["Jun",150,null,null,null,50,null,null,null,null,null,"Jun","N/A","N/A","N/A","N/A","N/A"]
["Jul",150,null,null,null,50,null,null,null,null,null,"Jul","N/A","N/A","N/A","N/A","N/A",null,"Maximum: for 10-min and daily periods use the highest of all operational combustion lines in any month."]
["Aug",150,null,null,null,50,null,null,null,null,null,"Aug","N/A","N/A","N/A","N/A","N/A"]
["Sep",150,null,null,null,50,null,null,null,null,null,"Sep","N/A","N/A","N/A","N/A","N/A"]
["Oct",150,null,null,null,50,null,null,null,null,null,"Oct","N/A","N/A","N/A","N/A","N/A"]
["Nov",150,null,null,null,50,null,null,null,null,null,"Nov","N/A","N/A","N/A","N/A","N/A"]
["Dec",150,null,null,null,50,null,null,null,null,null,"Dec","N/A","N/A","N/A","N/A","N/A"]
[null,null,null,null,null,null,null,null,null,null,null,"Annual",{"$f":"AVERAGE(M10:M21)","v":{"$error":"#DIV/0!"}},null,{"$f":"MAX(O10:O21)","v":0},{"$f":"AVERAGE(P10:P21)","v":{"$error":"#DIV/0!"}},{"$f":"MAX(Q10:Q21)","v":0}]
[]
[null,null,null,null,null,null,null,null,null,null,{"$f":"+A8","v":2025},"mg/Nm3","Highest daily 95%ile 10-min average","Monthly mean of 10-min averages","Highest 10-min average","Monthly mean of  daily averages","Highest daily average"]
[null,null,null,null,null,null,null,null,null,null,"A2","Jan","N/A","N/A","N/A","N/A","N/A"]
[null,null,null,null,null,null,null,null,null,null,null,"Feb","N/A","N/A","N/A","N/A","N/A"]
[null,null,null,null,null,null,null,null,null,null,null,"Mar","N/A","N/A","N/A","N/A","N/A"]
[null,null,null,null,null,null,null,null,null,null,null,"Apr","N/A","N/A","N/A","N/A","N/A"]
[null,null,null,null,null,null,null,null,null,null,null,"May","N/A","N/A","N/A","N/A","N/A"]
[null,null,null,null,null,null,null,null,null,null,null,"Jun","N/A","N/A","N/A","N/A","N/A"]
[null,null,null,null,null,null,null,null,null,null,null,"Jul","N/A","N/A","N/A","N/A","N/A"]
[null,null,null,null,null,null,null,null,null,null,null,"Aug","N/A","N/A","N/A","N/A","N/A"]
[null,null,null,null,null,null,null,null,null,null,null,"Sep","N/A","N/A","N/A","N/A","N/A"]
[null,null,null,null,null,null,null,null,null,null,null,"Oct","N/A","N/A","N/A","N/A","N/A"]
[null,null,null,null,null,null,null,null,null,null,null,"Nov","N/A","N/A","N/A","N/A","N/A"]
[null,null,null,null,null,null,null,null,null,null,null,"Dec","N/A","N/A","N/A","N/A","N/A"]
[null,null,null,null,null,null,null,null,null,null,null,"Annual",{"$f":"AVERAGE(M25:M36)","v":{"$error":"#DIV/0!"}},null,{"$f":"MAX(O25:O36)","v":0},{"$f":"AVERAGE(P25:P36)","v":{"$error":"#DIV/0!"}},{"$f":"MAX(Q25:Q36)","v":0}]
[]
[null,null,null,null,null,null,null,null,null,null,{"$f":"+A8","v":2025},"mg/Nm3","Highest daily 95%ile 10-min average","Monthly mean of 10-min averages","Highest 10-min average","Monthly mean of  daily averages","Highest daily average"]
[null,null,null,null,null,null,null,null,null,null,"A3","Jan","N/A","N/A","N/A","N/A","N/A"]
[null,null,null,null,null,null,null,null,null,null,null,"Feb","N/A","N/A","N/A","N/A","N/A"]
[null,null,null,null,null,null,null,null,null,null,null,"Mar","N/A","N/A","N/A","N/A","N/A"]
[null,null,null,null,null,null,null,null,null,null,null,"Apr","N/A","N/A","N/A","N/A","N/A"]
[null,null,null,null,null,null,null,null,null,null,null,"May","N/A","N/A","N/A","N/A","N/A"]
[null,null,null,null,null,null,null,null,null,null,null,"Jun","N/A","N/A","N/A","N/A","N/A"]
[null,null,null,null,null,null,null,null,null,null,null,"Jul","N/A","N/A","N/A","N/A","N/A"]
[null,null,null,null,null,null,null,null,null,null,null,"Aug","N/A","N/A","N/A","N/A","N/A"]
[null,null,null,null,null,null,null,null,null,null,null,"Sep","N/A","N/A","N/A","N/A","N/A"]
[null,null,null,null,null,null,null,null,null,null,null,"Oct","N/A","N/A","N/A","N/A","N/A"]
[null,null,null,null,null,null,null,null,null,null,null,"Nov","N/A","N/A","N/A","N/A","N/A"]
["Comments :",null,null,null,null,null,null,null,null,null,null,"Dec","N/A","N/A","N/A","N/A","N/A"]
["Environment Agency explanatory note: The 10-minute average ELV is based on the “95th percentile”. In this case this means that 95% of the 10 minute averages in the relevant 24-hour period (i.e. 137) must be below 150 mg/Nm3, and 5% (i.e. 7) are allowed to be any value above 150 mg/Nm3. Whilst we expect operators to minimise CO emissions at all times, it is perfectly acceptable for the value of the maximum 10-minute average to be above 150 mg/Nm3, provided the 95th percentile ELV has been met for that period. ",null,null,null,null,null,null,null,null,null,null,"Annual",{"$f":"AVERAGE(M40:M51)","v":{"$error":"#DIV/0!"}},null,{"$f":"MAX(O40:O51)","v":0},{"$f":"AVERAGE(P40:P51)","v":{"$error":"#DIV/0!"}},{"$f":"MAX(Q40:Q51)","v":0}]
[]
[null,null,null,null,null,null,null,null,null,null,{"$f":"+A8","v":2025},"mg/Nm3","Highest daily 95%ile 10-min average","Monthly mean of 10-min averages","Highest 10-min average","Monthly mean of  daily averages","Highest daily average"]
[null,null,null,null,null,null,null,null,null,null,"A4","Jan","N/A","N/A","N/A","N/A","N/A"]
[null,null,null,null,null,null,null,null,null,null,null,"Feb","N/A","N/A","N/A","N/A","N/A"]
[null,null,null,null,null,null,null,null,null,null,null,"Mar","N/A","N/A","N/A","N/A","N/A"]
[null,null,null,null,null,null,null,null,null,null,null,"Apr","N/A","N/A","N/A","N/A","N/A"]
[null,null,null,null,null,null,null,null,null,null,null,"May","N/A","N/A","N/A","N/A","N/A"]
[null,null,null,null,null,null,null,null,null,null,null,"Jun","N/A","N/A","N/A","N/A","N/A"]
[null,null,null,null,null,null,null,null,null,null,null,"Jul","N/A","N/A","N/A","N/A","N/A"]
[null,null,null,null,null,null,null,null,null,null,null,"Aug","N/A","N/A","N/A","N/A","N/A"]
[null,null,null,null,null,null,null,null,null,null,null,"Sep","N/A","N/A","N/A","N/A","N/A"]
[null,null,null,null,null,null,null,null,null,null,null,"Oct","N/A","N/A","N/A","N/A","N/A"]
[null,null,null,null,null,null,null,null,null,null,null,"Nov","N/A","N/A","N/A","N/A","N/A"]
[null,null,null,null,null,null,null,null,null,null,null,"Dec","N/A","N/A","N/A","N/A","N/A"]
[null,null,null,null,null,null,null,null,null,null,null,"Annual",{"$f":"AVERAGE(M55:M66)","v":{"$error":"#DIV/0!"}},null,{"$f":"MAX(O55:O66)","v":0},{"$f":"AVERAGE(P55:P66)","v":{"$error":"#DIV/0!"}},{"$f":"MAX(Q55:Q66)","v":0}]
[]
[null,null,null,null,null,null,null,null,null,null,{"$f":"+A8","v":2025},"mg/Nm3","95%ile 10-min avg maximum","Monthly CO 10-min avg mean","10-min avg maximum","Monthly daily mean","Monthly daily maximum"]
[null,null,null,null,null,null,null,null,null,null,"A5","Jan","N/A","N/A","N/A","N/A","N/A"]
[null,null,null,null,null,null,null,null,null,null,null,"Feb","N/A","N/A","N/A","N/A","N/A"]
[null,null,null,null,null,null,null,null,null,null,null,"Mar","N/A","N/A","N/A","N/A","N/A"]
[null,null,null,null,null,null,null,null,null,null,null,"Apr","N/A","N/A","N/A","N/A","N/A"]
[null,null,null,null,null,null,null,null,null,null,null,"May","N/A","N/A","N/A","N/A","N/A"]
[null,null,null,null,null,null,null,null,null,null,null,"Jun","N/A","N/A","N/A","N/A","N/A"]
[null,null,null,null,null,null,null,null,null,null,null,"Jul","N/A","N/A","N/A","N/A","N/A"]
[null,null,null,null,null,null,null,null,null,null,null,"Aug","N/A","N/A","N/A","N/A","N/A"]
[null,null,null,null,null,null,null,null,null,null,null,"Sep","N/A","N/A","N/A","N/A","N/A"]
[null,null,null,null,null,null,null,null,null,null,null,"Oct","N/A","N/A","N/A","N/A","N/A"]
[null,null,null,null,null,null,null,null,null,null,null,"Nov","N/A","N/A","N/A","N/A","N/A"]
[null,null,null,null,null,null,null,null,null,null,null,"Dec","N/A","N/A","N/A","N/A","N/A"]
[null,null,null,null,null,null,null,null,null,null,null,"Annual",{"$f":"AVERAGE(M70:M81)","v":{"$error":"#DIV/0!"}},null,{"$f":"MAX(O70:O81)","v":0},{"$f":"AVERAGE(P70:P81)","v":{"$error":"#DIV/0!"}},{"$f":"MAX(Q70:Q81)","v":0}]

{"sheet":"NH3","index":21,"n_rows":79,"n_cols":17,"rows_kept":79,"cut":false,"hidden":false,"merged":[[3,16,7,18],[9,16,11,18],[12,16,15,18],[66,9,78,9],[4,1,4,3],[4,4,4,6],[4,9,4,14],[6,9,18,9],[21,9,33,9],[36,9,48,9],[47,0,47,6],[48,0,51,6],[51,9,63,9],[18,4,18,6]]}
[{"$f":"+'Cover Page'!$B$29","v":"Annual Performance Report 2025"},null,null,null,{"$f":"+'Cover Page'!$B$33","v":"Issue Date:"}]
[]
["Monitoring of Ammnonia emissions ",null,null,"Whole Installation",null,null,"See  Notes in Cell Q3",null,null,{"$f":"+A3","v":"Monitoring of Ammnonia emissions "},null,null,null,"Per Combustion Line",null,null,"Notes:"]
[null,null,null,null,null,null,null,null,null,null,null,null,null,null,null,null,"User to add logic to complete Whole installation, Table A5:G18. From the data in Per Combustion Line, Table J6:O79, subject to No. of lines installed"]
[{"$f":"+'Cover Page'!C39","v":2025},"1/2 Hourly Reference Periods",null,null,"Daily Reference Periods"]
["mg/Nm3","1/2 hourly NH3 ELV","Monthly mean of half-hourly averages","Highest half- hourly average","Daily NH3 ELV","Monthly mean of  daily averages","Highest daily average",null,null,{"$f":"+A5","v":2025},"mg/Nm3","Monthly mean of half-hourly averages","Highest half- hourly average","Monthly mean of  daily averages","Highest daily average"]
["Jan","None",1.2,14.8,10,1.2,5.4,null,null,"A1","Jan",0.6,14.8,0.6,1.9]
["Feb",{"$f":"+B7","v":"None"},3.1,29.9,10,3.1,8.9,null,null,null,"Feb",3.2,27.8,3.3,8.9]
["Mar",{"$f":"+B8","v":"None"},2.6,125.3,10,2.6,12.7,null,null,null,"Mar",2.6,125.3,2.6,8.9,null,"Whole Installation table A5:G18:"]
["Apr","None",1.8,71.400000000000006,10,1.8,10.5,null,null,null,"Apr",1.6,21.6,1.5,4.5999999999999996,null,"Mean: for 1/2 hourly and daily periods calculate mean of values across all operational combustion lines for the month"]
["May","None",1.2,27.3,10,1.1000000000000001,8.1999999999999993,null,null,null,"May",1,19.399999999999999,1,2.7]
["Jun","None",0.7,70.900000000000006,10,0.8,6.5,null,null,null,"Jun",0.9,70.900000000000006,0.9,6.5]
["Jul","None",0.8,24.9,10,0.8,5,null,null,null,"Jul",0.9,24.9,0.9,1.7,null,"Maximum: for 1/2 hourly and daily periods use the highest value across all operational combustion lines for the month"]
["Aug","None",0.9,18,10,0.9,6.2,null,null,null,"Aug",0.5,14.3,0.6,2.1]
["Sep","None",0.5,11.6,10,0.5,6.8,null,null,null,"Sep",0.3,10.5,0.4,4.3]
["Oct","None",0.7,16.3,10,0.7,2.8,null,null,null,"Oct",0.4,16.3,0.4,2.5]
["Nov","None",0.8,35.700000000000003,10,0.8,5.7,null,null,null,"Nov",0.7,35.700000000000003,0.7,5.7]
["Dec","None",0.8,10.3,10,0.8,3,null,null,null,"Dec",0.7,10.3,0.7,1.9]
[null,null,null,null,null,null,null,null,null,null,"Annual",{"$f":"AVERAGE(L7:L18)","v":1.1166666666666667},{"$f":"MAX(M7:M18)","v":125.3},{"$f":"AVERAGE(N7:N18)","v":1.1333333333333333},{"$f":"MAX(O7:O18)","v":8.9}]
[]
[null,null,null,null,null,null,null,null,null,{"$f":"+A5","v":2025},"mg/Nm3","Monthly mean of half-hourly averages","Highest half- hourly average","Monthly mean of  daily averages","Highest daily average"]
[null,null,null,null,null,null,null,null,null,"A2","Jan",1.9,13.9,1.8,5.4]
[null,null,null,null,null,null,null,null,null,null,"Feb",4.8,29.9,4.8,7.9]
[null,null,null,null,null,null,null,null,null,null,"Mar",2.2999999999999998,20,2.2999999999999998,8]
[null,null,null,null,null,null,null,null,null,null,"Apr",1.7,47.8,1.7,10.5]
[null,null,null,null,null,null,null,null,null,null,"May",1.1000000000000001,7.1,1,2.9]
[null,null,null,null,null,null,null,null,null,null,"Jun",0.5,13.1,0.5,1.5]
[null,null,null,null,null,null,null,null,null,null,"Jul",0.6,11.7,0.6,2]
[null,null,null,null,null,null,null,null,null,null,"Aug",0.4,10.199999999999999,0.4,1.8]
[null,null,null,null,null,null,null,null,null,null,"Sep",0.4,4.8,0.3,1.1000000000000001]
[null,null,null,null,null,null,null,null,null,null,"Oct",0.8,13.6,0.8,2.8]
[null,null,null,null,null,null,null,null,null,null,"Nov",0.6,5.5,0.6,1.4]
[null,null,null,null,null,null,null,null,null,null,"Dec",0.7,8.9,0.7,1.9]
[null,null,null,null,null,null,null,null,null,null,"Annual",{"$f":"AVERAGE(L22:L33)","v":1.3166666666666667},{"$f":"MAX(M22:M33)","v":47.8},{"$f":"AVERAGE(N22:N33)","v":1.2916666666666665},{"$f":"MAX(O22:O33)","v":10.5}]
[]
[null,null,null,null,null,null,null,null,null,{"$f":"+A5","v":2025},"mg/Nm3","Monthly mean of half-hourly averages","Highest half- hourly average","Monthly mean of  daily averages","Highest daily average"]
[null,null,null,null,null,null,null,null,null,"A3","Jan",1.2,11.6,1.2,3]
[null,null,null,null,null,null,null,null,null,null,"Feb",1.4,10.5,1.4,3.5]
[null,null,null,null,null,null,null,null,null,null,"Mar",2.9,76.3,3,12.7]
[null,null,null,null,null,null,null,null,null,null,"Apr",2.2000000000000002,71.400000000000006,2.2000000000000002,6.6]
[null,null,null,null,null,null,null,null,null,null,"May",1.5,27.3,1.5,8.1999999999999993]
[null,null,null,null,null,null,null,null,null,null,"Jun",0.9,19.5,1,2.9]
[null,null,null,null,null,null,null,null,null,null,"Jul",0.9,19.399999999999999,0.9,5]
[null,null,null,null,null,null,null,null,null,null,"Aug",1.8,18,1.7,6.2]
[null,null,null,null,null,null,null,null,null,null,"Sep",0.8,11.6,1,6.8]
[null,null,null,null,null,null,null,null,null,null,"Oct",1,11.4,0.9,1.8]
[null,null,null,null,null,null,null,null,null,null,"Nov",1.2,13.8,1.2,2.7]
["Comments :",null,null,null,null,null,null,null,null,null,"Dec",1.2,8.8000000000000007,1.2,3]
["An indicated ELV value of zero in the table above means that no ammonia limit is/was set in the permit.  ",null,null,null,null,null,null,null,null,null,"Annual",{"$f":"AVERAGE(L37:L48)","v":1.4166666666666667},{"$f":"MAX(M37:M48)","v":76.3},{"$f":"AVERAGE(N37:N48)","v":1.4333333333333333},{"$f":"MAX(O37:O48)","v":12.7}]
[]
[null,null,null,null,null,null,null,null,null,{"$f":"+A5","v":2025},"mg/Nm3","Monthly mean of half-hourly averages","Highest half- hourly average","Monthly mean of  daily averages","Highest daily average"]
[null,null,null,null,null,null,null,null,null,"A4","Jan","N/A","N/A","N/A","N/A"]
[null,null,null,null,null,null,null,null,null,null,"Feb"]
[null,null,null,null,null,null,null,null,null,null,"Mar"]
[null,null,null,null,null,null,null,null,null,null,"Apr"]
[null,null,null,null,null,null,null,null,null,null,"May"]
[null,null,null,null,null,null,null,null,null,null,"Jun"]
[null,null,null,null,null,null,null,null,null,null,"Jul"]
[null,null,null,null,null,null,null,null,null,null,"Aug"]
[null,null,null,null,null,null,null,null,null,null,"Sep"]
[null,null,null,null,null,null,null,null,null,null,"Oct"]
[null,null,null,null,null,null,null,null,null,null,"Nov"]
[null,null,null,null,null,null,null,null,null,null,"Dec"]
[null,null,null,null,null,null,null,null,null,null,"Annual",{"$f":"AVERAGE(L52:L63)","v":{"$error":"#DIV/0!"}},{"$f":"MAX(M52:M63)","v":0},{"$f":"AVERAGE(N52:N63)","v":{"$error":"#DIV/0!"}},{"$f":"MAX(O52:O63)","v":0}]
[]
[null,null,null,null,null,null,null,null,null,{"$f":"+A5","v":2025},"mg/Nm3","Monthly mean of half-hourly averages","Highest half- hourly average","Monthly mean of  daily averages","Highest daily average"]
[null,null,null,null,null,null,null,null,null,"A5","Jan","N/A","N/A","N/A","N/A"]
[null,null,null,null,null,null,null,null,null,null,"Feb"]
[null,null,null,null,null,null,null,null,null,null,"Mar"]
[null,null,null,null,null,null,null,null,null,null,"Apr"]
[null,null,null,null,null,null,null,null,null,null,"May"]
[null,null,null,null,null,null,null,null,null,null,"Jun"]
[null,null,null,null,null,null,null,null,null,null,"Jul"]
[null,null,null,null,null,null,null,null,null,null,"Aug"]
[null,null,null,null,null,null,null,null,null,null,"Sep"]
[null,null,null,null,null,null,null,null,null,null,"Oct"]
[null,null,null,null,null,null,null,null,null,null,"Nov"]
[null,null,null,null,null,null,null,null,null,null,"Dec"]
[null,null,null,null,null,null,null,null,null,null,"Annual",{"$f":"AVERAGE(L67:L78)","v":{"$error":"#DIV/0!"}},{"$f":"MAX(M67:M78)","v":0},{"$f":"AVERAGE(N67:N78)","v":{"$error":"#DIV/0!"}},{"$f":"MAX(O67:O78)","v":0}]

{"sheet":"Template changes log","index":22,"n_rows":23,"n_cols":3,"rows_kept":23,"cut":false,"hidden":false,"merged":[]}
["Log of changes to template (Environment Agency use only)"]
[]
["Date","Description of change","New version number and date"]
["2024-01-16","Air (periodic) tab: corrected default O2 reference from 6 to 11% ","Version 23.5a (for incinerators) - 16/01/2024"]
["2024-09-23","Air (periodic) tab: corrected symbol for Thallium to Tl"]
["2024-09-23","Air (periodic) tab: removed last year's references to different emission limit values applying from 03/12/23 and updated all relevant ELVs"]
["2024-09-23","Tabs for continuously monitored pollutants (HCl, SO2 etc.): changed terminology in table headings to improve clarity"]
["2024-09-23","Tabs for continuously monitored pollutants (HCl, SO2 etc.): removed last year's references to different emission limit values applying from 03/12/23 and updated all relevant ELVs"]
["2024-09-23","Perf 1 tab: updated formula for water usage to report m3 rather than litres and corrected error with formula copying operator name"]
["2024-09-23","Operational Summary tab: table added on start-ups and shut-downs"]
["2024-09-23","Operational Summary tab: table added on dioxins and mercury protocols"]
["2024-09-23","Operational Summary tab: table added on AST, QAL 2 and calibration functions"]
["2024-09-23","CO2 N2O tab: various changes made to notes to reflect the fact that most plants should now have calibrated CEMS and flow meters + some have C14 samplers and more up to date industry data","Version 24a (for incinerators) - 23/09/24"]
["2024-11-08","CO2 N2O tab: Changed the N2O CO2 equivalence factor from 298 to 265 in line with recently updated government greenhouse gas figures: https://www.gov.uk/government/publications/greenhouse-gas-reporting-conversion-factors-2024"]
["2024-11-08","CO2 N2O tab: Added an additional requirement for municipal EfW plants to state the yearly average biogenic percentage of the waste by mass, and reference to a document which sets out a methodology for calculating NCV of waste from the results of C14 sampling."]
["2024-11-08","Permit Compliance tab: Two additional columns added + explanatory notes to the table entitled \"Summary of non-compliances under the permit\" to allow CCS scores to be stated where relevant. "]
["2024-11-08","Residue Quality tab: Note added explaining application of TOC and LOI limits and asking operators to report both metrics where measured. ","Version 24.1a (for incinerators) - 08/11/24"]
["2024-11-27","Operational Summary tab: table added on start-ups and shut-downs","Version 24.2a (for incinerators) - 27/11/24"]
["2025-11-27","Cover Page: Print as PDF and Print Report and pdf buttons deleted and blank columns removed; contents page deleted","Version 25.1a (for incinerators) - 27/11/25"]
["2025-11-27","Residue Quality tab renamed to \"Residues\", and Summary of residue handling table moved from Operational Summary tab to Residues tab."]
["2025-11-27","Various changes made to the Operational Data tab including\n•\tReformatting of the rows under the Operational data heading (Rows 3-8) to make it clearer what information is required. \n•\tAmendment of the rows under the Energy Usage / Export heading (Rows 26-32) to calculate an “indicative parasitic load” (now excluding energy imported)\n•\tAmendment of the unit for gas usage from cubic feet to cubic metres (Row 50) \n•\tSome amendments to the first 2 notes and other minor edits\n•\tDeleted \"Overall Availability, mean avg. of all lines, hrs\" row"]
["2025-11-27","Operational Summary tab: Note added requiring all emergency shut-downs be listed, irrespective of whether or not they were reportable. "]
["2025-11-27","CO2 N2O tab: Note added to ask operators to ensure that relevant data reported here matches that which will be submitted under the Pollution Inventory"]